Workbook

Sheet Инструкция
C2: FORMA5.BUHG.2011
B4: Инструкция по заполнению шаблона "Приложение к бухгалтерскому балансу"
C7: Технические требования: • макросы во время работы должны быть включены
C8: • на рабочем месте должен быть установлен MS Office 2003, 2007, 2010 x86 с полной версией MS Excel
C9: • макросы во время работы должны быть включены
C10: • для корректной работы шаблона требуется выбрать низкий уровень безопасности (В меню MS Excel 2003: Сервис → Макрос → Безопасность → выбрать нижний пункт «Низкая безопасность» → «OK») (В MS Excel 2007 после открытия файла шаблона нажать на кнопку «Параметры…» → «Предупреждение системы безопасности» → «Включить это содержимое» → «OK»)
D11: Цвета ячеек:
D12: ● | E12: Голубой – ячейки, обязательные для заполнения;
D13: ● | E13: Желтый – ячейки, предназначенные для заполнения;
D14: ● | E14: Зеленый – ячейки с формулами/константами или заполняемые автоматически (например, при выборе организации из реестра или выборе даты).
D16: Пояснение к заполнению (необходимо нажать один раз).
C18: Шаблон может быть сохранен на любом этапе заполнения!
C19: • При сохранении шаблона осуществляется проверка на наличие и корректность (например, КПП – 9 цифр) обязательных параметров на листах.
C20: • Если какая-то ячейка не удовлетворяет условию проверки, на лист «Проверка» добавляется гиперссылка на данную ячейку и причина, по которой шаблон не будет загружен в хранилище данных.
C21: • В колонке «Статус ошибки» для каждого сообщения возможны 2 значения: ошибка и предупреждение.
C22: • При наличии сообщений со статусом «Ошибка» шаблон будет отклонён системой, сообщения со статусом «Предупреждение» носят информационный характер, и такой шаблон будет принят системой.
C23: Организационно-технические консультации:
C24: ФИО:
C25: телефон:
C26: e-mail:
C27: WEB-сайт:
C28: Комментарий
C29: Дистрибутивы:
C30: Дистрибутивы (ссылка):
C32: Консультации по методологии заполнения форм:
C33: ФИО:
C34: телефон:
C35: e-mail:
C36: WEB-сайт:
C37: Комментарий
B40: Список сокращений
C43: Сокращение | E43: Расшифровка | F43: Данные
C44: 1 | E44: 2 | F44: 3
C45: ОКПО | E45: Общероссийский классификатор предприятий и организаций
C46: ОКВЭД | E46: Общероссийский классификатор видов экономической деятельности | F46: http://www.gmcgks.ru/new_page_96.htm
C47: ОКАТО | E47: Общероссийский классификатор объектов административно-территориального деления | F47: http://www.gmcgks.ru/new_page_87.htm
C48: ОКОГУ | E48: Общероссийский классификатор органов государственной власти и управления | F48: http://www.gmcgks.ru/new_page_77.htm
C49: ОКОПФ | E49: Общероссийский классификатор организационно-правовых форм | F49: http://www.gmcgks.ru/new_page_95.htm
C50: ОКФС | E50: Общероссийский классификатор форм собственности | F50: http://www.gmcgks.ru/new_page_94.htm
C51: ОКУД | E51: Общероссийский классификатор управленческой документации | F51: http://www.gmcgks.ru/new_page_80.htm
C52: ОКЕИ | E52: Общероссийский классификатор единиц измерения | F52: http://www.gmcgks.ru/new_page_83.htm
C53: ОКТМО | E53: Общероссийский классификатор территорий муниципальных образований | F53: http://www.gks.ru/metod/classifiers.html

Sheet Обновление (hidden)
O2: =version -> 0
C3: Инструкция по обновлению шаблона
C24: Если компьютер имеет подключение к Интернет, можно автоматически проверять наличие доступных обновлений. Выберите способ оповещения о наличии обновлений для шаблона:

Sheet Лог обновления (hidden)
A1: Дата/Время | B1: Сообщение | C1: Статус
A2: 3/8/2013 6:29:49 PM | B2: Проверка доступных обновлений... | C2: Информация
A3: 3/8/2013 6:29:50 PM | B3: Версия шаблона 2.2 актуальна, обновление не требуется | C3: Информация
A4: 11/3/2016 3:28:53 AM | B4: Проверка доступных обновлений... | C4: Информация
A5: 11/3/2016 3:28:56 AM | B5: Версия шаблона 2.3 актуальна, обновление не требуется | C5: Информация
A6: 11/3/2016 3:29:12 AM | B6: Проверка доступных обновлений... | C6: Информация
A7: 11/3/2016 3:29:13 AM | B7: Версия шаблона 2.3 актуальна, обновление не требуется | C7: Информация
A8: 11/9/2016 6:31:53 PM | B8: Проверка доступных обновлений... | C8: Информация
A9: 11/9/2016 6:31:54 PM | B9: Версия шаблона 2.3 актуальна, обновление не требуется | C9: Информация

Sheet Титульный
J1: 01.01.2016
B4: Приложение к бухгалтерскому балансу
B6: Приложение к Приказу Минфина РФ от 02.07.2010 № 66н (в ред. Приказов Минфина России от 05.10.2011 №124н, от 17.08.2012 №113н, от 04.12.2012 №154н)
C8: Создать печатную форму
C9: Регион РФ | D9: Рязанская область
C11: Отчётный период
C12: Год | D12: 2016
C13: Квартал (с нарастающим итогом) | D13: год
C15: Признак филиала | D15: нет
H16: Форма №2 по ОКУД | I16: 0710005
H17: Дата (год,месяц,число) | I17: 31.12.2016
C18: Организация: | D18: МУНИЦИПАЛЬНОЕ ПРЕДПРИЯТИЕ "ВОДОКАНАЛ ГОРОДА РЯЗАНИ" | H18: Коды* по ОКПО | I18: 03219667
C19: Наименование филиала:
C20: ИНН: | D20: 6227004811
C21: КПП: | D21: 623401001
C22: Вид деятельности: | D22: Холодное водоснабжение; Водоотведение | H22: Коды* по ОКВЭД | I22: 41.00.2
C23: Организационно-правовая форма/форма собственности: | D23: МУНИЦИПАЛЬНОЕ ПРЕДПРИЯТИЕ "ВОДОКАНАЛ ГОРОДА РЯЗАНИ" | E23: / | F23: муниципальная собственность | H23: Коды* по ОКОПФ/ОКФС | I23: 14 | J23: 42
C24: Единица измерения: | D24: тыс.руб. | H24: Коды* по ОКЕИ | I24: 384
C27: Муниципальный район | D27: Город Рязань
C29: Муниципальное образование | D29: Город Рязань
C31: ОКТМО | D31: 61701000
C33: Адрес организации
C34: Юридический адрес: | D34: 390027, ОБЛ РЯЗАНСКАЯ, Г РЯЗАНЬ, Ш КАСИМОВСКОЕ, д.9
C35: Почтовый адрес: | D35: 390000, Рязанская Область, Рязань Город, Касимовское Шоссе, д.9
C37: Руководитель
C38: Фамилия, имя, отчество: | D38: Штефае Олег Борисович
C39: (код) номер телефона: | D39: (4912)41 00 10 | H39: * Расшифровки всех сокращений и ссылки приведены на листе "Инструкция"
C41: Главный бухгалтер
C42: Фамилия, имя, отчество: | D42: Куранова Наталия Александровна
C43: (код) номер телефона: | D43: (4912) 41 80 48
C45: Должностное лицо, ответственное за составление формы
C46: Фамилия, имя, отчество: | D46: Оболенцева Екатерина Николаевна
C47: Должность: | D47: начальник планово-экономического отдела
C48: (код) номер телефона: | D48: (4912) 41 02 13
C49: e-mail: | D49: oen@vkrzn.ru
C51: Дата составления документа | D51: =TODAY() -> 2017-04-24

Sheet Стр 1-3
AP7: Форма 0710005 с. 1-3
D8: 1. Нематериальные активы и расходы на научно-исследовательские, опытно-конструкторские и технологические работы (НИОКР)
D10: 1.1. Наличие и движение нематериальных активов
AN12: =IF(unit="","",unit) -> тыс.руб.
E13: № п/п | F13: Наименование показателя | G13: Период | H13: Код строки | I13: На начало года | O13: Изменения за период | AJ13: На конец периода
I14: первоначальная стоимость * | L14: накопленная амортизация и убытки от обесценения | O14: поступило | R14: выбыло | X14: начислено амортизации | AA14: убыток от обесценения | AD14: переоценка | AJ14: первоначальная стоимость * | AM14: накопленная амортизация и убытки от обесценения
R15: первоначальная стоимость * | U15: накопленная амортизация и убытки от обесценения | AD15: первоначальная стоимость * | AG15: накопленная амортизация и убытки от обесценения
E16: 1 | F16: 2 | G16: 3 | H16: 4 | J16: 5 | L16: 6 | P16: 7 | R16: 8 | V16: 9 | X16: 10 | AB16: 11 | AE16: 12 | AH16: 13 | AK16: 14 | AM16: 15
E17: 1.1 | F17: Нематериальные активы - всего, в том числе: | G17: ="за "&IF(god="","отчётный год",god&" год") -> за 2016 год | H17: 5100 | I17: =IF((SUM(IF($AQ$19:$AQ$21="c",IF(I$19:I$21="(",-J$19:J$21,J$19:J$21))))<0,"(","") ->  | J17: =ABS(SUM(IF($AQ$19:$AQ$21="c",IF(I$19:I$21="(",-J$19:J$21,J$19:J$21)))) -> 0 | K17: =IF(I17="(",")","") ->  | L17: ( | M17: =SUMIF($AQ$19:$AQ$21,$AQ17,M$19:M$21) -> 0 | N17: ) | O17: =IF((SUM(IF($AQ$19:$AQ$21="c",IF(O$19:O$21="(",-P$19:P$21,P$19:P$21))))<0,"(","") ->  | P17: =ABS(SUM(IF($AQ$19:$AQ$21="c",IF(O$19:O$21="(",-P$19:P$21,P$19:P$21)))) -> 0 | Q17: =IF(O17="(",")","") ->  | R17: ( | S17: =SUMIF($AQ$19:$AQ$21,$AQ17,S$19:S$21) -> 0 | T17: ) | U17: =IF((SUM(IF($AQ$19:$AQ$21="c",IF(U$19:U$21="(",-V$19:V$21,V$19:V$21))))<0,"(","") ->  | V17: =ABS(SUM(IF($AQ$19:$AQ$21="c",IF(U$19:U$21="(",-V$19:V$21,V$19:V$21)))) -> 0 | W17: =IF(U17="(",")","") ->  | X17: ( | Y17: =SUMIF($AQ$19:$AQ$21,$AQ17,Y$19:Y$21) -> 0 | Z17: ) | AA17: =IF((SUM(IF($AQ$19:$AQ$21="c",IF(AA$19:AA$21="(",-AB$19:AB$21,AB$19:AB$21))))<0,"(","") ->  | AB17: =ABS(SUM(IF($AQ$19:$AQ$21="c",IF(AA$19:AA$21="(",-AB$19:AB$21,AB$19:AB$21)))) -> 0 | AC17: =IF(AA17="(",")","") ->  | AD17: =IF((SUM(IF($AQ$19:$AQ$21="c",IF(AD$19:AD$21="(",-AE$19:AE$21,AE$19:AE$21))))<0,"(","") ->  | AE17: =ABS(SUM(IF($AQ$19:$AQ$21="c",IF(AD$19:AD$21="(",-AE$19:AE$21,AE$19:AE$21)))) -> 0 | AF17: =IF(AD17="(",")","") ->  | AG17: =IF((SUM(IF($AQ$19:$AQ$21="c",IF(AG$19:AG$21="(",-AH$19:AH$21,AH$19:AH$21))))<0,"(","") ->  | AH17: =ABS(SUM(IF($AQ$19:$AQ$21="c",IF(AG$19:AG$21="(",-AH$19:AH$21,AH$19:AH$21)))) -> 0 | AI17: =IF(AG17="(",")","") ->  | AJ17: =IF((SUM(IF($AQ$19:$AQ$21="c",IF(AJ$19:AJ$21="(",-AK$19:AK$21,AK$19:AK$21))))<0,"(","") ->  | AK17: =ABS(SUM(IF($AQ$19:$AQ$21="c",IF(AJ$19:AJ$21="(",-AK$19:AK$21,AK$19:AK$21)))) -> 0 | AL17: =IF(AJ17="(",")","") ->  | AM17: ( | AN17: =SUMIF($AQ$19:$AQ$21,$AQ17,AN$19:AN$21) -> 0 | AO17: ) | AQ17: c
G18: ="за "&IF(god="","предыдущий год",god-1&" год") -> за 2015 год | H18: 5110 | I18: =IF((SUM(IF($AQ$19:$AQ$21="p",IF(I$19:I$21="(",-J$19:J$21,J$19:J$21))))<0,"(","") ->  | J18: =ABS(SUM(IF($AQ$19:$AQ$21="p",IF(I$19:I$21="(",-J$19:J$21,J$19:J$21)))) -> 0 | K18: =IF(I18="(",")","") ->  | L18: ( | M18: =SUMIF($AQ$19:$AQ$21,$AQ18,M$19:M$21) -> 0 | N18: ) | O18: =IF((SUM(IF($AQ$19:$AQ$21="p",IF(O$19:O$21="(",-P$19:P$21,P$19:P$21))))<0,"(","") ->  | P18: =ABS(SUM(IF($AQ$19:$AQ$21="p",IF(O$19:O$21="(",-P$19:P$21,P$19:P$21)))) -> 0 | Q18: =IF(O18="(",")","") ->  | R18: ( | S18: =SUMIF($AQ$19:$AQ$21,$AQ18,S$19:S$21) -> 0 | T18: ) | U18: =IF((SUM(IF($AQ$19:$AQ$21="p",IF(U$19:U$21="(",-V$19:V$21,V$19:V$21))))<0,"(","") ->  | V18: =ABS(SUM(IF($AQ$19:$AQ$21="p",IF(U$19:U$21="(",-V$19:V$21,V$19:V$21)))) -> 0 | W18: =IF(U18="(",")","") ->  | X18: ( | Y18: =SUMIF($AQ$19:$AQ$21,$AQ18,Y$19:Y$21) -> 0 | Z18: ) | AA18: =IF((SUM(IF($AQ$19:$AQ$21="p",IF(AA$19:AA$21="(",-AB$19:AB$21,AB$19:AB$21))))<0,"(","") ->  | AB18: =ABS(SUM(IF($AQ$19:$AQ$21="p",IF(AA$19:AA$21="(",-AB$19:AB$21,AB$19:AB$21)))) -> 0 | AC18: =IF(AA18="(",")","") ->  | AD18: =IF((SUM(IF($AQ$19:$AQ$21="p",IF(AD$19:AD$21="(",-AE$19:AE$21,AE$19:AE$21))))<0,"(","") ->  | AE18: =ABS(SUM(IF($AQ$19:$AQ$21="p",IF(AD$19:AD$21="(",-AE$19:AE$21,AE$19:AE$21)))) -> 0 | AF18: =IF(AD18="(",")","") ->  | AG18: =IF((SUM(IF($AQ$19:$AQ$21="p",IF(AG$19:AG$21="(",-AH$19:AH$21,AH$19:AH$21))))<0,"(","") ->  | AH18: =ABS(SUM(IF($AQ$19:$AQ$21="p",IF(AG$19:AG$21="(",-AH$19:AH$21,AH$19:AH$21)))) -> 0 | AI18: =IF(AG18="(",")","") ->  | AJ18: =IF((SUM(IF($AQ$19:$AQ$21="p",IF(AJ$19:AJ$21="(",-AK$19:AK$21,AK$19:AK$21))))<0,"(","") ->  | AK18: =ABS(SUM(IF($AQ$19:$AQ$21="p",IF(AJ$19:AJ$21="(",-AK$19:AK$21,AK$19:AK$21)))) -> 0 | AL18: =IF(AJ18="(",")","") ->  | AM18: ( | AN18: =SUMIF($AQ$19:$AQ$21,$AQ18,AN$19:AN$21) -> 0 | AO18: ) | AQ18: p
E19: 1.1.1 | G19: ="за "&IF(god="","отчётный год",god&" год") -> за 2016 год | L19: ( | N19: ) | R19: ( | T19: ) | X19: ( | Z19: ) | AM19: ( | AO19: ) | AQ19: c
G20: ="за "&IF(god="","предыдущий год",god-1&" год") -> за 2015 год | L20: ( | N20: ) | R20: ( | T20: ) | X20: ( | Z20: ) | AM20: ( | AO20: ) | AQ20: p
F21: Добавить вид нематериальных активов
E23: * | F23: В случае переоценки в графе "Первоначальная стоимость" приводится текущая рыночная стоимость или текущая (восстановительная) стоимость.
D26: 1.2. Первоначальная стоимость нематериальных активов, созданных самой организацией
P28: =IF(unit="","",unit) -> тыс.руб.
E29: № п/п | F29: Наименование показателя | H29: Код строки | I29: ="На "&IF(report_date = "","отчётную дату отчётного года",report_date& " г.") -> На 31.12.2016 г. | L29: ="На 31 декабря "&IF(god = "","предыдущего года",god-1& " г.") -> На 31 декабря 2015 г. | O29: ="На 31 декабря "&IF(god = "","года, предшествующего предыдущему",god-2& " г.") -> На 31 декабря 2014 г.
E30: 1 | F30: 2 | H30: 3 | J30: 4 | L30: 5 | P30: 6
E31: 1.2 | F31: Всего, в том числе: | H31: 5120 | I31: =IF((SUMIF(I32:I33,"",J32:J33)-SUMIF(I32:I33,"(",J32:J33))<0,"(","") ->  | J31: =ABS(SUMIF(I32:I33,"",J32:J33)-SUMIF(I32:I33,"(",J32:J33)) -> 0 | K31: =IF(I31="(",")","") ->  | L31: =IF((SUMIF(L32:L33,"",M32:M33)-SUMIF(L32:L33,"(",M32:M33))<0,"(","") ->  | M31: =ABS(SUMIF(L32:L33,"",M32:M33)-SUMIF(L32:L33,"(",M32:M33)) -> 0 | N31: =IF(L31="(",")","") ->  | O31: =IF((SUMIF(O32:O33,"",P32:P33)-SUMIF(O32:O33,"(",P32:P33))<0,"(","") ->  | P31: =ABS(SUMIF(O32:O33,"",P32:P33)-SUMIF(O32:O33,"(",P32:P33)) -> 0 | Q31: =IF(O31="(",")","") -> 
E32: 1.2.1
F33: Добавить вид нематериальных активов
D36: 1.3. Нематериальные активы с полностью погашенной стоимостью
P38: =IF(unit="","",unit) -> тыс.руб.
E39: № п/п | F39: Наименование показателя | H39: Код строки | I39: ="На "&IF(report_date = "","отчётную дату отчётного года",report_date& " г.") -> На 31.12.2016 г. | L39: ="На 31 декабря "&IF(god = "","предыдущего года",god-1& " г.") -> На 31 декабря 2015 г. | O39: ="На 31 декабря "&IF(god = "","года, предшествующего предыдущему",god-2& " г.") -> На 31 декабря 2014 г.
E40: 1 | F40: 2 | H40: 3 | J40: 4 | L40: 5 | P40: 6
E41: 1.3 | F41: Всего, в том числе: | H41: 5130 | I41: =IF((SUMIF(I42:I43,"",J42:J43)-SUMIF(I42:I43,"(",J42:J43))<0,"(","") ->  | J41: =ABS(SUMIF(I42:I43,"",J42:J43)-SUMIF(I42:I43,"(",J42:J43)) -> 0 | K41: =IF(I41="(",")","") ->  | L41: =IF((SUMIF(L42:L43,"",M42:M43)-SUMIF(L42:L43,"(",M42:M43))<0,"(","") ->  | M41: =ABS(SUMIF(L42:L43,"",M42:M43)-SUMIF(L42:L43,"(",M42:M43)) -> 0 | N41: =IF(L41="(",")","") ->  | O41: =IF((SUMIF(O42:O43,"",P42:P43)-SUMIF(O42:O43,"(",P42:P43))<0,"(","") ->  | P41: =ABS(SUMIF(O42:O43,"",P42:P43)-SUMIF(O42:O43,"(",P42:P43)) -> 0 | Q41: =IF(O41="(",")","") -> 
E42: 1.3.1
F43: Добавить вид нематериальных активов
D46: 1.4. Наличие и движение результатов НИОКР
AE48: =IF(unit="","",unit) -> тыс.руб.
E49: № п/п | F49: Наименование показателя | G49: Период | H49: Код строки | I49: На начало года | O49: Изменения за период | AA49: На конец периода
I50: первоначальная стоимость | L50: часть стоимости, списанной на расходы | O50: поступило | R50: выбыло | X50: часть стоимости, списанная на расходы за период | AA50: первоначальная стоимость * | AD50: часть стоимости, списанная на расходы
R51: первоначальная стоимость | U51: часть стоимости, списанной на расходы
E52: 1 | F52: 2 | G52: 3 | H52: 4 | J52: 5 | L52: 6 | P52: 7 | R52: 8 | V52: 9 | X52: 10 | AB52: 11 | AD52: 12
E53: 1.4 | F53: НИОКР - всего, в том числе: | G53: ="за "&IF(god="","отчётный год",god&" год") -> за 2016 год | H53: 5140 | I53: =IF((SUM(IF($AH$55:$AH$57="c",IF(I$55:I$57="(",-J$55:J$57,J$55:J$57))))<0,"(","") ->  | J53: =ABS(SUM(IF($AH$55:$AH$57="c",IF(I$55:I$57="(",-J$55:J$57,J$55:J$57)))) -> 0 | K53: =IF(I53="(",")","") ->  | L53: ( | M53: =SUMIF($AH$55:$AH$57,$AH53,M$55:M$57) -> 0 | N53: ) | O53: =IF((SUM(IF($AH$55:$AH$57="c",IF(O$55:O$57="(",-P$55:P$57,P$55:P$57))))<0,"(","") ->  | P53: =ABS(SUM(IF($AH$55:$AH$57="c",IF(O$55:O$57="(",-P$55:P$57,P$55:P$57)))) -> 0 | Q53: =IF(O53="(",")","") ->  | R53: ( | S53: =SUMIF($AH$55:$AH$57,$AH53,S$55:S$57) -> 0 | T53: ) | U53: =IF((SUM(IF($AH$55:$AH$57="c",IF(U$55:U$57="(",-V$55:V$57,V$55:V$57))))<0,"(","") ->  | V53: =ABS(SUM(IF($AH$55:$AH$57="c",IF(U$55:U$57="(",-V$55:V$57,V$55:V$57)))) -> 0 | W53: =IF(U53="(",")","") ->  | X53: ( | Y53: =SUMIF($AH$55:$AH$57,$AH53,Y$55:Y$57) -> 0 | Z53: ) | AA53: =IF((SUM(IF($AH$55:$AH$57="c",IF(AA$55:AA$57="(",-AB$55:AB$57,AB$55:AB$57))))<0,"(","") ->  | AB53: =ABS(SUM(IF($AH$55:$AH$57="c",IF(AA$55:AA$57="(",-AB$55:AB$57,AB$55:AB$57)))) -> 0 | AC53: =IF(AA53="(",")","") ->  | AD53: ( | AE53: =SUMIF($AH$55:$AH$57,$AH53,AE$55:AE$57) -> 0 | AF53: ) | AH53: c
G54: ="за "&IF(god="","предыдущий год",god-1&" год") -> за 2015 год | H54: 5150 | I54: =IF((SUM(IF($AH$55:$AH$57="p",IF(I$55:I$57="(",-J$55:J$57,J$55:J$57))))<0,"(","") ->  | J54: =ABS(SUM(IF($AH$55:$AH$57="p",IF(I$55:I$57="(",-J$55:J$57,J$55:J$57)))) -> 0 | K54: =IF(I54="(",")","") ->  | L54: ( | M54: =SUMIF($AH$55:$AH$57,$AH54,M$55:M$57) -> 0 | N54: ) | O54: =IF((SUM(IF($AH$55:$AH$57="p",IF(O$55:O$57="(",-P$55:P$57,P$55:P$57))))<0,"(","") ->  | P54: =ABS(SUM(IF($AH$55:$AH$57="p",IF(O$55:O$57="(",-P$55:P$57,P$55:P$57)))) -> 0 | Q54: =IF(O54="(",")","") ->  | R54: ( | S54: =SUMIF($AH$55:$AH$57,$AH54,S$55:S$57) -> 0 | T54: ) | U54: =IF((SUM(IF($AH$55:$AH$57="p",IF(U$55:U$57="(",-V$55:V$57,V$55:V$57))))<0,"(","") ->  | V54: =ABS(SUM(IF($AH$55:$AH$57="p",IF(U$55:U$57="(",-V$55:V$57,V$55:V$57)))) -> 0 | W54: =IF(U54="(",")","") ->  | X54: ( | Y54: =SUMIF($AH$55:$AH$57,$AH54,Y$55:Y$57) -> 0 | Z54: ) | AA54: =IF((SUM(IF($AH$55:$AH$57="p",IF(AA$55:AA$57="(",-AB$55:AB$57,AB$55:AB$57))))<0,"(","") ->  | AB54: =ABS(SUM(IF($AH$55:$AH$57="p",IF(AA$55:AA$57="(",-AB$55:AB$57,AB$55:AB$57)))) -> 0 | AC54: =IF(AA54="(",")","") ->  | AD54: ( | AE54: =SUMIF($AH$55:$AH$57,$AH54,AE$55:AE$57) -> 0 | AF54: ) | AH54: p
E55: 1.4.1 | G55: ="за "&IF(god="","отчётный год",god&" год") -> за 2016 год | L55: ( | N55: ) | R55: ( | T55: ) | X55: ( | Z55: ) | AD55: ( | AF55: ) | AH55: c
G56: ="за "&IF(god="","предыдущий год",god-1&" год") -> за 2015 год | L56: ( | N56: ) | R56: ( | T56: ) | X56: ( | Z56: ) | AD56: ( | AF56: ) | AH56: p
F57: Добавить объект
D60: 1.5. Незаконченные и неоформленные НИОКР и незаконченные операции по приобретению нематериальных активов
V61: =IF(unit="","",unit) -> тыс.руб.
E63: № п/п | F63: Наименование показателя | G63: Период | H63: Код строки | I63: На начало года | L63: Изменения за период | U63: На конец периода
L64: затраты за период | O64: списано затрат как не давших положительного результата | R64: принято к учету в качестве нематериальных активов или НИОКР
E65: 1 | F65: 2 | G65: 3 | H65: 4 | J65: 5 | M65: 6 | O65: 7 | R65: 8 | V65: 9
E66: 1.5.1 | F66: Затраты по незаконченным исследованиям и разработкам - всего, в том числе: | G66: ="за "&IF(god="","отчётный год",god&" год") -> за 2016 год | H66: 5160 | I66: =IF((SUM(IF($Y$68:$Y$70="c",IF(I$68:I$70="(",-J$68:J$70,J$68:J$70))))<0,"(","") ->  | J66: =ABS(SUM(IF($Y$68:$Y$70="c",IF(I$68:I$70="(",-J$68:J$70,J$68:J$70)))) -> 0 | K66: =IF(I66="(",")","") ->  | L66: =IF((SUM(IF($Y$68:$Y$70="c",IF(L$68:L$70="(",-M$68:M$70,M$68:M$70))))<0,"(","") ->  | M66: =ABS(SUM(IF($Y$68:$Y$70="c",IF(L$68:L$70="(",-M$68:M$70,M$68:M$70)))) -> 0 | N66: =IF(L66="(",")","") ->  | O66: ( | P66: =SUMIF($Y$68:$Y$70,$Y66,P$68:P$70) -> 0 | Q66: ) | R66: ( | S66: =SUMIF($Y$68:$Y$70,$Y66,S$68:S$70) -> 0 | T66: ) | U66: =IF((SUM(IF($Y$68:$Y$70="c",IF(U$68:U$70="(",-V$68:V$70,V$68:V$70))))<0,"(","") ->  | V66: =ABS(SUM(IF($Y$68:$Y$70="c",IF(U$68:U$70="(",-V$68:V$70,V$68:V$70)))) -> 0 | W66: =IF(U66="(",")","") ->  | Y66: c
G67: ="за "&IF(god="","предыдущий год",god-1&" год") -> за 2015 год | H67: 5170 | I67: =IF((SUM(IF($Y$68:$Y$70="p",IF(I$68:I$70="(",-J$68:J$70,J$68:J$70))))<0,"(","") ->  | J67: =ABS(SUM(IF($Y$68:$Y$70="p",IF(I$68:I$70="(",-J$68:J$70,J$68:J$70)))) -> 0 | K67: =IF(I67="(",")","") ->  | L67: =IF((SUM(IF($Y$68:$Y$70="p",IF(L$68:L$70="(",-M$68:M$70,M$68:M$70))))<0,"(","") ->  | M67: =ABS(SUM(IF($Y$68:$Y$70="p",IF(L$68:L$70="(",-M$68:M$70,M$68:M$70)))) -> 0 | N67: =IF(L67="(",")","") ->  | O67: ( | P67: =SUMIF($Y$68:$Y$70,$Y67,P$68:P$70) -> 0 | Q67: ) | R67: ( | S67: =SUMIF($Y$68:$Y$70,$Y67,S$68:S$70) -> 0 | T67: ) | U67: =IF((SUM(IF($Y$68:$Y$70="p",IF(U$68:U$70="(",-V$68:V$70,V$68:V$70))))<0,"(","") ->  | V67: =ABS(SUM(IF($Y$68:$Y$70="p",IF(U$68:U$70="(",-V$68:V$70,V$68:V$70)))) -> 0 | W67: =IF(U67="(",")","") ->  | Y67: p
E68: 1.5.1.1 | G68: ="за "&IF(god="","отчётный год",god&" год") -> за 2016 год | O68: ( | Q68: ) | R68: ( | T68: ) | Y68: c
G69: ="за "&IF(god="","предыдущий год",god-1&" год") -> за 2015 год | O69: ( | Q69: ) | R69: ( | T69: ) | Y69: p
F70: Добавить объект
E71: 1.5.2 | F71: Незаконченные операции по приобретению нематериальных активов - всего, в том числе: | G71: ="за "&IF(god="","отчётный год",god&" год") -> за 2016 год | H71: 5180 | I71: =IF((SUM(IF($Y$73:$Y$75="c",IF(I$73:I$75="(",-J$73:J$75,J$73:J$75))))<0,"(","") ->  | J71: =ABS(SUM(IF($Y$73:$Y$75="c",IF(I$73:I$75="(",-J$73:J$75,J$73:J$75)))) -> 0 | K71: =IF(I71="(",")","") ->  | L71: =IF((SUM(IF($Y$73:$Y$75="c",IF(L$73:L$75="(",-M$73:M$75,M$73:M$75))))<0,"(","") ->  | M71: =ABS(SUM(IF($Y$73:$Y$75="c",IF(L$73:L$75="(",-M$73:M$75,M$73:M$75)))) -> 0 | N71: =IF(L71="(",")","") ->  | O71: ( | P71: =SUMIF($Y$73:$Y$75,$Y71,P$73:P$75) -> 0 | Q71: ) | R71: ( | S71: =SUMIF($Y$73:$Y$75,$Y71,S$73:S$75) -> 0 | T71: ) | U71: =IF((SUM(IF($Y$73:$Y$75="c",IF(U$73:U$75="(",-V$73:V$75,V$73:V$75))))<0,"(","") ->  | V71: =ABS(SUM(IF($Y$73:$Y$75="c",IF(U$73:U$75="(",-V$73:V$75,V$73:V$75)))) -> 0 | W71: =IF(U71="(",")","") ->  | Y71: c
G72: ="за "&IF(god="","предыдущий год",god-1&" год") -> за 2015 год | H72: 5190 | I72: =IF((SUM(IF($Y$73:$Y$75="p",IF(I$73:I$75="(",-J$73:J$75,J$73:J$75))))<0,"(","") ->  | J72: =ABS(SUM(IF($Y$73:$Y$75="p",IF(I$73:I$75="(",-J$73:J$75,J$73:J$75)))) -> 0 | K72: =IF(I72="(",")","") ->  | L72: =IF((SUM(IF($Y$73:$Y$75="p",IF(L$73:L$75="(",-M$73:M$75,M$73:M$75))))<0,"(","") ->  | M72: =ABS(SUM(IF($Y$73:$Y$75="p",IF(L$73:L$75="(",-M$73:M$75,M$73:M$75)))) -> 0 | N72: =IF(L72="(",")","") ->  | O72: ( | P72: =SUMIF($Y$73:$Y$75,$Y72,P$73:P$75) -> 0 | Q72: ) | R72: ( | S72: =SUMIF($Y$73:$Y$75,$Y72,S$73:S$75) -> 0 | T72: ) | U72: =IF((SUM(IF($Y$73:$Y$75="p",IF(U$73:U$75="(",-V$73:V$75,V$73:V$75))))<0,"(","") ->  | V72: =ABS(SUM(IF($Y$73:$Y$75="p",IF(U$73:U$75="(",-V$73:V$75,V$73:V$75)))) -> 0 | W72: =IF(U72="(",")","") ->  | Y72: p
E73: 1.5.2.1 | G73: ="за "&IF(god="","отчётный год",god&" год") -> за 2016 год | O73: ( | Q73: ) | R73: ( | T73: ) | Y73: c
G74: ="за "&IF(god="","предыдущий год",god-1&" год") -> за 2015 год | O74: ( | Q74: ) | R74: ( | T74: ) | Y74: p
F75: Добавить объект

Sheet Стр 4-6
AM7: Форма 0710005 с. 4-6
D8: 2. Основные средства
D10: 2.1. Наличие и движение основных средств
AK12: =IF(unit="","",unit) -> тыс.руб.
E13: № п/п | F13: Наименование показателя | G13: Период | H13: Код строки | I13: На начало года | O13: Изменения за период | AG13: На конец периода
I14: первоначальная стоимость * | L14: накопленная амортизация ** | O14: поступило | R14: выбыло объектов | X14: начислено амортизации ** | AA14: переоценка | AG14: первоначальная стоимость * | AJ14: накопленная амортизация **
R15: первоначальная стоимость * | U15: накопленная амортизация ** | AA15: первоначальная стоимость * | AD15: накопленная амортизация **
E16: 1 | F16: 2 | G16: 3 | H16: 4 | J16: 5 | L16: 6 | P16: 7 | R16: 8 | V16: 9 | X16: 10 | AB16: 11 | AE16: 12 | AH16: 13 | AJ16: 14
E17: 1.1 | F17: Основные средства (без учета доходных вложений в материальные ценности) - всего, в том числе: | G17: ="за "&IF(god="","отчётный год",god&" год") -> за 2016 год | H17: 5200 | I17: =IF((SUM(IF($AN$19:$AN$21="c",IF(I$19:I$21="(",-J$19:J$21,J$19:J$21))))<0,"(","") ->  | J17: =ABS(SUM(IF($AN$19:$AN$21="c",IF(I$19:I$21="(",-J$19:J$21,J$19:J$21)))) -> 2902807 | K17: =IF(I17="(",")","") ->  | L17: ( | M17: =SUMIF($AN$19:$AN$21,$AN17,M$19:M$21) -> 1240510 | N17: ) | O17: =IF((SUM(IF($AN$19:$AN$21="c",IF(O$19:O$21="(",-P$19:P$21,P$19:P$21))))<0,"(","") ->  | P17: =ABS(SUM(IF($AN$19:$AN$21="c",IF(O$19:O$21="(",-P$19:P$21,P$19:P$21)))) -> 198021 | Q17: =IF(O17="(",")","") ->  | R17: ( | S17: =SUMIF($AN$19:$AN$21,$AN17,S$19:S$21) -> 6990 | T17: ) | U17: =IF((SUM(IF($AN$19:$AN$21="c",IF(U$19:U$21="(",-V$19:V$21,V$19:V$21))))<0,"(","") ->  | V17: =ABS(SUM(IF($AN$19:$AN$21="c",IF(U$19:U$21="(",-V$19:V$21,V$19:V$21)))) -> 7030 | W17: =IF(U17="(",")","") ->  | X17: ( | Y17: =SUMIF($AN$19:$AN$21,$AN17,Y$19:Y$21) -> 150942 | Z17: ) | AA17: =IF((SUM(IF($AN$19:$AN$21="c",IF(AA$19:AA$21="(",-AB$19:AB$21,AB$19:AB$21))))<0,"(","") ->  | AB17: =ABS(SUM(IF($AN$19:$AN$21="c",IF(AA$19:AA$21="(",-AB$19:AB$21,AB$19:AB$21)))) -> 111896 | AC17: =IF(AA17="(",")","") ->  | AD17: =IF((SUM(IF($AN$19:$AN$21="c",IF(AD$19:AD$21="(",-AE$19:AE$21,AE$19:AE$21))))<0,"(","") -> ( | AE17: =ABS(SUM(IF($AN$19:$AN$21="c",IF(AD$19:AD$21="(",-AE$19:AE$21,AE$19:AE$21)))) -> 234 | AF17: =IF(AD17="(",")","") -> ) | AG17: =IF((SUM(IF($AN$19:$AN$21="c",IF(AG$19:AG$21="(",-AH$19:AH$21,AH$19:AH$21))))<0,"(","") ->  | AH17: =ABS(SUM(IF($AN$19:$AN$21="c",IF(AG$19:AG$21="(",-AH$19:AH$21,AH$19:AH$21)))) -> 3205734 | AI17: =IF(AG17="(",")","") ->  | AJ17: ( | AK17: =SUMIF($AN$19:$AN$21,$AN17,AK$19:AK$21) -> 1384666 | AL17: ) | AN17: c
G18: ="за "&IF(god="","предыдущий год",god-1&" год") -> за 2015 год | H18: 5210 | I18: =IF((SUM(IF($AN$19:$AN$21="p",IF(I$19:I$21="(",-J$19:J$21,J$19:J$21))))<0,"(","") ->  | J18: =ABS(SUM(IF($AN$19:$AN$21="p",IF(I$19:I$21="(",-J$19:J$21,J$19:J$21)))) -> 2768533 | K18: =IF(I18="(",")","") ->  | L18: ( | M18: =SUMIF($AN$19:$AN$21,$AN18,M$19:M$21) -> 1109551 | N18: ) | O18: =IF((SUM(IF($AN$19:$AN$21="p",IF(O$19:O$21="(",-P$19:P$21,P$19:P$21))))<0,"(","") ->  | P18: =ABS(SUM(IF($AN$19:$AN$21="p",IF(O$19:O$21="(",-P$19:P$21,P$19:P$21)))) -> 144675 | Q18: =IF(O18="(",")","") ->  | R18: ( | S18: =SUMIF($AN$19:$AN$21,$AN18,S$19:S$21) -> 10401 | T18: ) | U18: =IF((SUM(IF($AN$19:$AN$21="p",IF(U$19:U$21="(",-V$19:V$21,V$19:V$21))))<0,"(","") ->  | V18: =ABS(SUM(IF($AN$19:$AN$21="p",IF(U$19:U$21="(",-V$19:V$21,V$19:V$21)))) -> 1677 | W18: =IF(U18="(",")","") ->  | X18: ( | Y18: =SUMIF($AN$19:$AN$21,$AN18,Y$19:Y$21) -> 140142 | Z18: ) | AA18: =IF((SUM(IF($AN$19:$AN$21="p",IF(AA$19:AA$21="(",-AB$19:AB$21,AB$19:AB$21))))<0,"(","") ->  | AB18: =ABS(SUM(IF($AN$19:$AN$21="p",IF(AA$19:AA$21="(",-AB$19:AB$21,AB$19:AB$21)))) -> 0 | AC18: =IF(AA18="(",")","") ->  | AD18: =IF((SUM(IF($AN$19:$AN$21="p",IF(AD$19:AD$21="(",-AE$19:AE$21,AE$19:AE$21))))<0,"(","") -> ( | AE18: =ABS(SUM(IF($AN$19:$AN$21="p",IF(AD$19:AD$21="(",-AE$19:AE$21,AE$19:AE$21)))) -> 7506 | AF18: =IF(AD18="(",")","") -> ) | AG18: =IF((SUM(IF($AN$19:$AN$21="p",IF(AG$19:AG$21="(",-AH$19:AH$21,AH$19:AH$21))))<0,"(","") ->  | AH18: =ABS(SUM(IF($AN$19:$AN$21="p",IF(AG$19:AG$21="(",-AH$19:AH$21,AH$19:AH$21)))) -> 2902807 | AI18: =IF(AG18="(",")","") ->  | AJ18: ( | AK18: =SUMIF($AN$19:$AN$21,$AN18,AK$19:AK$21) -> 1240510 | AL18: ) | AN18: p
E19: 1.1.1 | G19: ="за "&IF(god="","отчётный год",god&" год") -> за 2016 год | J19: 2902807 | L19: ( | M19: 1240510 | N19: ) | P19: 198021 | R19: ( | S19: 6990 | T19: ) | V19: 7030 | X19: ( | Y19: 150942 | Z19: ) | AB19: 111896 | AD19: ( | AE19: 234 | AF19: ) | AH19: 3205734 | AJ19: ( | AK19: 1384666 | AL19: ) | AN19: c
G20: ="за "&IF(god="","предыдущий год",god-1&" год") -> за 2015 год | J20: 2768533 | L20: ( | M20: 1109551 | N20: ) | P20: 144675 | R20: ( | S20: 10401 | T20: ) | V20: 1677 | X20: ( | Y20: 140142 | Z20: ) | AB20: 0 | AD20: ( | AE20: 7506 | AF20: ) | AH20: 2902807 | AJ20: ( | AK20: 1240510 | AL20: ) | AN20: p
F21: Добавить группу основных средств
E22: 1.2 | F22: Учтено в составе доходных вложений в материальные ценности - всего, в том числе: | G22: ="за "&IF(god="","отчётный год",god&" год") -> за 2016 год | H22: 5220 | I22: =IF((SUM(IF($AN$24:$AN$26="c",IF(I$24:I$26="(",-J$24:J$26,J$24:J$26))))<0,"(","") ->  | J22: =ABS(SUM(IF($AN$24:$AN$26="c",IF(I$24:I$26="(",-J$24:J$26,J$24:J$26)))) -> 0 | K22: =IF(I22="(",")","") ->  | L22: ( | M22: =SUMIF($AN$24:$AN$26,$AN22,M$24:M$26) -> 0 | N22: ) | O22: =IF((SUM(IF($AN$24:$AN$26="c",IF(O$24:O$26="(",-P$24:P$26,P$24:P$26))))<0,"(","") ->  | P22: =ABS(SUM(IF($AN$24:$AN$26="c",IF(O$24:O$26="(",-P$24:P$26,P$24:P$26)))) -> 0 | Q22: =IF(O22="(",")","") ->  | R22: ( | S22: =SUMIF($AN$24:$AN$26,$AN22,S$24:S$26) -> 0 | T22: ) | U22: =IF((SUM(IF($AN$24:$AN$26="c",IF(U$24:U$26="(",-V$24:V$26,V$24:V$26))))<0,"(","") ->  | V22: =ABS(SUM(IF($AN$24:$AN$26="c",IF(U$24:U$26="(",-V$24:V$26,V$24:V$26)))) -> 0 | W22: =IF(U22="(",")","") ->  | X22: ( | Y22: =SUMIF($AN$24:$AN$26,$AN22,Y$24:Y$26) -> 0 | Z22: ) | AA22: =IF((SUM(IF($AN$24:$AN$26="c",IF(AA$24:AA$26="(",-AB$24:AB$26,AB$24:AB$26))))<0,"(","") ->  | AB22: =ABS(SUM(IF($AN$24:$AN$26="c",IF(AA$24:AA$26="(",-AB$24:AB$26,AB$24:AB$26)))) -> 0 | AC22: =IF(AA22="(",")","") ->  | AD22: =IF((SUM(IF($AN$24:$AN$26="c",IF(AD$24:AD$26="(",-AE$24:AE$26,AE$24:AE$26))))<0,"(","") ->  | AE22: =ABS(SUM(IF($AN$24:$AN$26="c",IF(AD$24:AD$26="(",-AE$24:AE$26,AE$24:AE$26)))) -> 0 | AF22: =IF(AD22="(",")","") ->  | AG22: =IF((SUM(IF($AN$24:$AN$26="c",IF(AG$24:AG$26="(",-AH$24:AH$26,AH$24:AH$26))))<0,"(","") ->  | AH22: =ABS(SUM(IF($AN$24:$AN$26="c",IF(AG$24:AG$26="(",-AH$24:AH$26,AH$24:AH$26)))) -> 0 | AI22: =IF(AG22="(",")","") ->  | AJ22: ( | AK22: =SUMIF($AN$24:$AN$26,$AN22,AK$24:AK$26) -> 0 | AL22: ) | AN22: c
G23: ="за "&IF(god="","предыдущий год",god-1&" год") -> за 2015 год | H23: 5230 | I23: =IF((SUM(IF($AN$24:$AN$26="p",IF(I$24:I$26="(",-J$24:J$26,J$24:J$26))))<0,"(","") ->  | J23: =ABS(SUM(IF($AN$24:$AN$26="p",IF(I$24:I$26="(",-J$24:J$26,J$24:J$26)))) -> 0 | K23: =IF(I23="(",")","") ->  | L23: ( | M23: =SUMIF($AN$24:$AN$26,$AN23,M$24:M$26) -> 0 | N23: ) | O23: =IF((SUM(IF($AN$24:$AN$26="p",IF(O$24:O$26="(",-P$24:P$26,P$24:P$26))))<0,"(","") ->  | P23: =ABS(SUM(IF($AN$24:$AN$26="p",IF(O$24:O$26="(",-P$24:P$26,P$24:P$26)))) -> 0 | Q23: =IF(O23="(",")","") ->  | R23: ( | S23: =SUMIF($AN$24:$AN$26,$AN23,S$24:S$26) -> 0 | T23: ) | U23: =IF((SUM(IF($AN$24:$AN$26="p",IF(U$24:U$26="(",-V$24:V$26,V$24:V$26))))<0,"(","") ->  | V23: =ABS(SUM(IF($AN$24:$AN$26="p",IF(U$24:U$26="(",-V$24:V$26,V$24:V$26)))) -> 0 | W23: =IF(U23="(",")","") ->  | X23: ( | Y23: =SUMIF($AN$24:$AN$26,$AN23,Y$24:Y$26) -> 0 | Z23: ) | AA23: =IF((SUM(IF($AN$24:$AN$26="p",IF(AA$24:AA$26="(",-AB$24:AB$26,AB$24:AB$26))))<0,"(","") ->  | AB23: =ABS(SUM(IF($AN$24:$AN$26="p",IF(AA$24:AA$26="(",-AB$24:AB$26,AB$24:AB$26)))) -> 0 | AC23: =IF(AA23="(",")","") ->  | AD23: =IF((SUM(IF($AN$24:$AN$26="p",IF(AD$24:AD$26="(",-AE$24:AE$26,AE$24:AE$26))))<0,"(","") ->  | AE23: =ABS(SUM(IF($AN$24:$AN$26="p",IF(AD$24:AD$26="(",-AE$24:AE$26,AE$24:AE$26)))) -> 0 | AF23: =IF(AD23="(",")","") ->  | AG23: =IF((SUM(IF($AN$24:$AN$26="p",IF(AG$24:AG$26="(",-AH$24:AH$26,AH$24:AH$26))))<0,"(","") ->  | AH23: =ABS(SUM(IF($AN$24:$AN$26="p",IF(AG$24:AG$26="(",-AH$24:AH$26,AH$24:AH$26)))) -> 0 | AI23: =IF(AG23="(",")","") ->  | AJ23: ( | AK23: =SUMIF($AN$24:$AN$26,$AN23,AK$24:AK$26) -> 0 | AL23: ) | AN23: p
E24: 1.2.1 | G24: ="за "&IF(god="","отчётный год",god&" год") -> за 2016 год | L24: ( | N24: ) | R24: ( | T24: ) | X24: ( | Z24: ) | AJ24: ( | AL24: ) | AN24: c
G25: ="за "&IF(god="","предыдущий год",god-1&" год") -> за 2015 год | L25: ( | N25: ) | R25: ( | T25: ) | X25: ( | Z25: ) | AJ25: ( | AL25: ) | AN25: p
F26: Добавить группу объектов
E28: * | F28: В случае переоценки в графе "Первоначальная стоимость" приводится текущая рыночная стоимость или текущая (восстановительная) стоимость.
E29: ** | F29: Некоммерческая организация графы "Накопленная амортизация" и "Начисленная амортизация" именует соответственно "Накопленный износ" и "Начисленный износ"
D32: 2.2. Незавершенные капитальные вложения
V34: =IF(unit="","",unit) -> тыс.руб.
E35: № п/п | F35: Наименование показателя | G35: Период | H35: Код строки | I35: На начало года | L35: Изменения за период | U35: На конец периода
L36: затраты за период | O36: списано | R36: принято к учету в качестве основных средств или увеличена стоимость
E37: 1 | F37: 2 | G37: 3 | H37: 4 | J37: 5 | L37: 6 | P37: 7 | R37: 8 | V37: 9
E38: 2 | F38: Незавершенное строительство и незаконченные операции по приобретению, модернизации и т.п. основных средств - всего, в том числе: | G38: ="за "&IF(god="","отчётный год",god&" год") -> за 2016 год | H38: 5240 | I38: =IF((SUM(IF($Y$40:$Y$44="c",IF(I$40:I$44="(",-J$40:J$44,J$40:J$44))))<0,"(","") ->  | J38: =ABS(SUM(IF($Y$40:$Y$44="c",IF(I$40:I$44="(",-J$40:J$44,J$40:J$44)))) -> 261911 | K38: =IF(I38="(",")","") ->  | L38: =IF((SUM(IF($Y$40:$Y$44="c",IF(L$40:L$44="(",-M$40:M$44,M$40:M$44))))<0,"(","") ->  | M38: =ABS(SUM(IF($Y$40:$Y$44="c",IF(L$40:L$44="(",-M$40:M$44,M$40:M$44)))) -> 166628 | N38: =IF(L38="(",")","") ->  | O38: ( | P38: =SUMIF($Y$40:$Y$44,$Y38,P$40:P$44) -> 1299 | Q38: ) | R38: ( | S38: =SUMIF($Y$40:$Y$44,$Y38,S$40:S$44) -> 312014 | T38: ) | U38: =IF((SUM(IF($Y$40:$Y$44="c",IF(U$40:U$44="(",-V$40:V$44,V$40:V$44))))<0,"(","") ->  | V38: =ABS(SUM(IF($Y$40:$Y$44="c",IF(U$40:U$44="(",-V$40:V$44,V$40:V$44)))) -> 115226 | W38: =IF(U38="(",")","") ->  | Y38: c
G39: ="за "&IF(god="","предыдущий год",god-1&" год") -> за 2015 год | H39: 5250 | I39: =IF((SUM(IF($Y$40:$Y$44="p",IF(I$40:I$44="(",-J$40:J$44,J$40:J$44))))<0,"(","") ->  | J39: =ABS(SUM(IF($Y$40:$Y$44="p",IF(I$40:I$44="(",-J$40:J$44,J$40:J$44)))) -> 210085 | K39: =IF(I39="(",")","") ->  | L39: =IF((SUM(IF($Y$40:$Y$44="p",IF(L$40:L$44="(",-M$40:M$44,M$40:M$44))))<0,"(","") ->  | M39: =ABS(SUM(IF($Y$40:$Y$44="p",IF(L$40:L$44="(",-M$40:M$44,M$40:M$44)))) -> 344707 | N39: =IF(L39="(",")","") ->  | O39: ( | P39: =SUMIF($Y$40:$Y$44,$Y39,P$40:P$44) -> 1300 | Q39: ) | R39: ( | S39: =SUMIF($Y$40:$Y$44,$Y39,S$40:S$44) -> 291581 | T39: ) | U39: =IF((SUM(IF($Y$40:$Y$44="p",IF(U$40:U$44="(",-V$40:V$44,V$40:V$44))))<0,"(","") ->  | V39: =ABS(SUM(IF($Y$40:$Y$44="p",IF(U$40:U$44="(",-V$40:V$44,V$40:V$44)))) -> 261911 | W39: =IF(U39="(",")","") ->  | Y39: p
E40: 2.1 | G40: ="за "&IF(god="","отчётный год",god&" год") -> за 2016 год | J40: 250715 | M40: 166628 | O40: ( | Q40: ) | R40: ( | S40: 312014 | T40: ) | V40: 105329 | Y40: c
G41: ="за "&IF(god="","предыдущий год",god-1&" год") -> за 2015 год | J41: 197589 | M41: 344707 | O41: ( | Q41: ) | R41: ( | S41: 291581 | T41: ) | V41: 250715 | Y41: p
D42: Удалить группу | E42: 2.2 | F42: Расходы будущих периодов долгосрочного характера(энергоаудит) | G42: ="за "&IF(god="","отчётный год",god&"год") -> за 2016год | H42: 5240 | J42: 11196 | M42: 0 | O42: ( | P42: 1299 | Q42: ) | R42: ( | T42: ) | V42: 9897 | Y42: c
G43: ="за "&IF(god="","предыдущий год",god-1&"год") -> за 2015год | H43: 5250 | J43: 12496 | O43: ( | P43: 1300 | Q43: ) | R43: ( | T43: ) | V43: 11196 | Y43: p
F44: Добавить группу объектов
D47: 2.3. Изменение стоимости основных средств в результате достройки, дооборудования, реконструкции и частичной ликвидации
M49: =IF(unit="","",unit) -> тыс.руб.
E50: № п/п | F50: Наименование показателя | H50: Код строки | I50: ="За "&IF(god="","отчётный год",god&" год") -> За 2016 год | L50: ="За "&IF(god="","предыдущий год",god-1&" год") -> За 2015 год
E51: 1 | F51: 2 | H51: 3 | J51: 4 | L51: 5
E52: 3.1 | F52: Увеличение стоимости объектов основных средств в результате достройки, дооборудования, реконструкции - всего, в том числе: | H52: 5260 | I52: =IF((SUMIF(I53:I54,"",J53:J54)-SUMIF(I53:I54,"(",J53:J54))<0,"(","") ->  | J52: =ABS(SUMIF(I53:I54,"",J53:J54)-SUMIF(I53:I54,"(",J53:J54)) -> 0 | K52: =IF(I52="(",")","") ->  | L52: =IF((SUMIF(L53:L54,"",M53:M54)-SUMIF(L53:L54,"(",M53:M54))<0,"(","") ->  | M52: =ABS(SUMIF(L53:L54,"",M53:M54)-SUMIF(L53:L54,"(",M53:M54)) -> 0 | N52: =IF(L52="(",")","") -> 
E53: 3.1.1
F54: Добавить объект основных средств
E55: 3.2 | F55: Уменьшение стоимости объектов основных средств в результате частичной ликвидации - всего, в том числе: | H55: 5270 | I55: ( | J55: =SUM(J56:J57) -> 0 | K55: ) | L55: ( | M55: =SUM(M56:M57) -> 0 | N55: )
E56: 3.2.1 | I56: ( | K56: ) | L56: ( | N56: )
F57: Добавить объект основных средств
D60: 2.4. Иное использование основных средств
P62: =IF(unit="","",unit) -> тыс.руб.
E63: № п/п | F63: Наименование показателя | H63: Код строки | I63: ="На "&IF(report_date = "","отчётную дату отчётного года",report_date& " г.") -> На 31.12.2016 г. | L63: ="На 31 декабря "&IF(god = "","предыдущего года",god-1& " г.") -> На 31 декабря 2015 г. | O63: ="На 31 декабря "&IF(god = "","года, предшествующего предыдущему",god-2& " г.") -> На 31 декабря 2014 г.
E64: 1 | F64: 2 | H64: 3 | J64: 4 | L64: 5 | P64: 6
E65: 4.1 | F65: Переданные в аренду основные средства, числящиеся на балансе | H65: 5280
E66: 4.2 | F66: Переданные в аренду основные средства, числящиеся за балансом | H66: 5281
E67: 4.3 | F67: Полученные в аренду основные средства, числящиеся на балансе | H67: 5282
E68: 4.4 | F68: Полученные в аренду основные средства, числящиеся за балансом | H68: 5283
E69: 4.5 | F69: Объекты недвижимости, принятые в эксплуатацию и фактически используемые, находящиеся в процессе государственной регистрации | H69: 5284
E70: 4.6 | F70: Основные средства, переведенные на консервацию | H70: 5285
E71: 4.7 | F71: Иное использование основных средств (залог и др.) | H71: 5286 | I71: =IF((SUMIF(I72:I73,"",J72:J73)-SUMIF(I72:I73,"(",J72:J73))<0,"(","") ->  | J71: =ABS(SUMIF(I72:I73,"",J72:J73)-SUMIF(I72:I73,"(",J72:J73)) -> 0 | K71: =IF(I71="(",")","") ->  | L71: =IF((SUMIF(L72:L73,"",M72:M73)-SUMIF(L72:L73,"(",M72:M73))<0,"(","") ->  | M71: =ABS(SUMIF(L72:L73,"",M72:M73)-SUMIF(L72:L73,"(",M72:M73)) -> 0 | N71: =IF(L71="(",")","") ->  | O71: =IF((SUMIF(O72:O73,"",P72:P73)-SUMIF(O72:O73,"(",P72:P73))<0,"(","") ->  | P71: =ABS(SUMIF(O72:O73,"",P72:P73)-SUMIF(O72:O73,"(",P72:P73)) -> 0 | Q71: =IF(O71="(",")","") -> 
E72: 4.7.1
F73: Добавить объект основных средств

Sheet Стр 7-9
AJ7: Форма 0710005 с. 7-9
D8: 3. Финансовые вложения
D10: 3.1. Наличие и движение финансовых вложений
AH12: =IF(unit="","",unit) -> тыс.руб.
E13: № п/п | F13: Наименование показателя | G13: Период | H13: Код строки | I13: На начало года | O13: Изменения за период | AD13: На конец периода
I14: первоначальная стоимость | L14: накопленная корректировка * | O14: поступило | R14: выбыло (погашено) | X14: начисление процентов (включая доведение перво-начальной стоимости до номинальной) | AA14: текущей рыночной стоимости (убытков от обесценения) | AD14: первоначальная стоимость | AG14: накопленная корректировка *
R15: первоначальная стоимость | U15: накопленная корректировка *
E16: 1 | F16: 2 | G16: 3 | H16: 4 | J16: 5 | L16: 6 | P16: 7 | R16: 8 | V16: 9 | X16: 10 | AB16: 11 | AE16: 12 | AG16: 13
E17: 1.1.1 | F17: Долгосрочные - всего, в том числе: | G17: ="за "&IF(god="","отчётный год",god&" год") -> за 2016 год | H17: 5301 | I17: =IF((SUM(IF($AK$19:$AK$21="c",IF(I$19:I$21="(",-J$19:J$21,J$19:J$21))))<0,"(","") ->  | J17: =ABS(SUM(IF($AK$19:$AK$21="c",IF(I$19:I$21="(",-J$19:J$21,J$19:J$21)))) -> 0 | K17: =IF(I17="(",")","") ->  | L17: =IF((SUM(IF($AK$19:$AK$21="c",IF(L$19:L$21="(",-M$19:M$21,M$19:M$21))))<0,"(","") ->  | M17: =ABS(SUM(IF($AK$19:$AK$21="c",IF(L$19:L$21="(",-M$19:M$21,M$19:M$21)))) -> 0 | N17: =IF(L17="(",")","") ->  | O17: =IF((SUM(IF($AK$19:$AK$21="c",IF(O$19:O$21="(",-P$19:P$21,P$19:P$21))))<0,"(","") ->  | P17: =ABS(SUM(IF($AK$19:$AK$21="c",IF(O$19:O$21="(",-P$19:P$21,P$19:P$21)))) -> 0 | Q17: =IF(O17="(",")","") ->  | R17: ( | S17: =SUMIF($AK$19:$AK$21,$AK17,S$19:S$21) -> 0 | T17: ) | U17: =IF((SUM(IF($AK$19:$AK$21="c",IF(U$19:U$21="(",-V$19:V$21,V$19:V$21))))<0,"(","") ->  | V17: =ABS(SUM(IF($AK$19:$AK$21="c",IF(U$19:U$21="(",-V$19:V$21,V$19:V$21)))) -> 0 | W17: =IF(U17="(",")","") ->  | X17: =IF((SUM(IF($AK$19:$AK$21="c",IF(X$19:X$21="(",-Y$19:Y$21,Y$19:Y$21))))<0,"(","") ->  | Y17: =ABS(SUM(IF($AK$19:$AK$21="c",IF(X$19:X$21="(",-Y$19:Y$21,Y$19:Y$21)))) -> 0 | Z17: =IF(X17="(",")","") ->  | AA17: =IF((SUM(IF($AK$19:$AK$21="c",IF(AA$19:AA$21="(",-AB$19:AB$21,AB$19:AB$21))))<0,"(","") ->  | AB17: =ABS(SUM(IF($AK$19:$AK$21="c",IF(AA$19:AA$21="(",-AB$19:AB$21,AB$19:AB$21)))) -> 0 | AC17: =IF(AA17="(",")","") ->  | AD17: =IF((SUM(IF($AK$19:$AK$21="c",IF(AD$19:AD$21="(",-AE$19:AE$21,AE$19:AE$21))))<0,"(","") ->  | AE17: =ABS(SUM(IF($AK$19:$AK$21="c",IF(AD$19:AD$21="(",-AE$19:AE$21,AE$19:AE$21)))) -> 0 | AF17: =IF(AD17="(",")","") ->  | AG17: =IF((SUM(IF($AK$19:$AK$21="c",IF(AG$19:AG$21="(",-AH$19:AH$21,AH$19:AH$21))))<0,"(","") ->  | AH17: =ABS(SUM(IF($AK$19:$AK$21="c",IF(AG$19:AG$21="(",-AH$19:AH$21,AH$19:AH$21)))) -> 0 | AI17: =IF(AG17="(",")","") ->  | AK17: c
G18: ="за "&IF(god="","предыдущий год",god-1&" год") -> за 2015 год | H18: 5311 | I18: =IF((SUM(IF($AK$19:$AK$21="p",IF(I$19:I$21="(",-J$19:J$21,J$19:J$21))))<0,"(","") ->  | J18: =ABS(SUM(IF($AK$19:$AK$21="p",IF(I$19:I$21="(",-J$19:J$21,J$19:J$21)))) -> 0 | K18: =IF(I18="(",")","") ->  | L18: =IF((SUM(IF($AK$19:$AK$21="p",IF(L$19:L$21="(",-M$19:M$21,M$19:M$21))))<0,"(","") ->  | M18: =ABS(SUM(IF($AK$19:$AK$21="p",IF(L$19:L$21="(",-M$19:M$21,M$19:M$21)))) -> 0 | N18: =IF(L18="(",")","") ->  | O18: =IF((SUM(IF($AK$19:$AK$21="p",IF(O$19:O$21="(",-P$19:P$21,P$19:P$21))))<0,"(","") ->  | P18: =ABS(SUM(IF($AK$19:$AK$21="p",IF(O$19:O$21="(",-P$19:P$21,P$19:P$21)))) -> 0 | Q18: =IF(O18="(",")","") ->  | R18: ( | S18: =SUMIF($AK$19:$AK$21,$AK18,S$19:S$21) -> 0 | T18: ) | U18: =IF((SUM(IF($AK$19:$AK$21="p",IF(U$19:U$21="(",-V$19:V$21,V$19:V$21))))<0,"(","") ->  | V18: =ABS(SUM(IF($AK$19:$AK$21="p",IF(U$19:U$21="(",-V$19:V$21,V$19:V$21)))) -> 0 | W18: =IF(U18="(",")","") ->  | X18: =IF((SUM(IF($AK$19:$AK$21="p",IF(X$19:X$21="(",-Y$19:Y$21,Y$19:Y$21))))<0,"(","") ->  | Y18: =ABS(SUM(IF($AK$19:$AK$21="p",IF(X$19:X$21="(",-Y$19:Y$21,Y$19:Y$21)))) -> 0 | Z18: =IF(X18="(",")","") ->  | AA18: =IF((SUM(IF($AK$19:$AK$21="p",IF(AA$19:AA$21="(",-AB$19:AB$21,AB$19:AB$21))))<0,"(","") ->  | AB18: =ABS(SUM(IF($AK$19:$AK$21="p",IF(AA$19:AA$21="(",-AB$19:AB$21,AB$19:AB$21)))) -> 0 | AC18: =IF(AA18="(",")","") ->  | AD18: =IF((SUM(IF($AK$19:$AK$21="p",IF(AD$19:AD$21="(",-AE$19:AE$21,AE$19:AE$21))))<0,"(","") ->  | AE18: =ABS(SUM(IF($AK$19:$AK$21="p",IF(AD$19:AD$21="(",-AE$19:AE$21,AE$19:AE$21)))) -> 0 | AF18: =IF(AD18="(",")","") ->  | AG18: =IF((SUM(IF($AK$19:$AK$21="p",IF(AG$19:AG$21="(",-AH$19:AH$21,AH$19:AH$21))))<0,"(","") ->  | AH18: =ABS(SUM(IF($AK$19:$AK$21="p",IF(AG$19:AG$21="(",-AH$19:AH$21,AH$19:AH$21)))) -> 0 | AI18: =IF(AG18="(",")","") ->  | AK18: p
E19: 1.1.1.1 | G19: ="за "&IF(god="","отчётный год",god&" год") -> за 2016 год | R19: ( | T19: ) | AK19: c
G20: ="за "&IF(god="","предыдущий год",god-1&" год") -> за 2015 год | R20: ( | T20: ) | AK20: p
F21: Добавить группу/вид
E22: 1.1.2 | F22: Краткосрочные - всего, в том числе: | G22: ="за "&IF(god="","отчётный год",god&" год") -> за 2016 год | H22: 5305 | I22: =IF((SUM(IF($AK$24:$AK$26="c",IF(I$24:I$26="(",-J$24:J$26,J$24:J$26))))<0,"(","") ->  | J22: =ABS(SUM(IF($AK$24:$AK$26="c",IF(I$24:I$26="(",-J$24:J$26,J$24:J$26)))) -> 0 | K22: =IF(I22="(",")","") ->  | L22: =IF((SUM(IF($AK$24:$AK$26="c",IF(L$24:L$26="(",-M$24:M$26,M$24:M$26))))<0,"(","") ->  | M22: =ABS(SUM(IF($AK$24:$AK$26="c",IF(L$24:L$26="(",-M$24:M$26,M$24:M$26)))) -> 0 | N22: =IF(L22="(",")","") ->  | O22: =IF((SUM(IF($AK$24:$AK$26="c",IF(O$24:O$26="(",-P$24:P$26,P$24:P$26))))<0,"(","") ->  | P22: =ABS(SUM(IF($AK$24:$AK$26="c",IF(O$24:O$26="(",-P$24:P$26,P$24:P$26)))) -> 0 | Q22: =IF(O22="(",")","") ->  | R22: ( | S22: =SUMIF($AK$24:$AK$26,$AK22,S$24:S$26) -> 0 | T22: ) | U22: =IF((SUM(IF($AK$24:$AK$26="c",IF(U$24:U$26="(",-V$24:V$26,V$24:V$26))))<0,"(","") ->  | V22: =ABS(SUM(IF($AK$24:$AK$26="c",IF(U$24:U$26="(",-V$24:V$26,V$24:V$26)))) -> 0 | W22: =IF(U22="(",")","") ->  | X22: =IF((SUM(IF($AK$24:$AK$26="c",IF(X$24:X$26="(",-Y$24:Y$26,Y$24:Y$26))))<0,"(","") ->  | Y22: =ABS(SUM(IF($AK$24:$AK$26="c",IF(X$24:X$26="(",-Y$24:Y$26,Y$24:Y$26)))) -> 0 | Z22: =IF(X22="(",")","") ->  | AA22: =IF((SUM(IF($AK$24:$AK$26="c",IF(AA$24:AA$26="(",-AB$24:AB$26,AB$24:AB$26))))<0,"(","") ->  | AB22: =ABS(SUM(IF($AK$24:$AK$26="c",IF(AA$24:AA$26="(",-AB$24:AB$26,AB$24:AB$26)))) -> 0 | AC22: =IF(AA22="(",")","") ->  | AD22: =IF((SUM(IF($AK$24:$AK$26="c",IF(AD$24:AD$26="(",-AE$24:AE$26,AE$24:AE$26))))<0,"(","") ->  | AE22: =ABS(SUM(IF($AK$24:$AK$26="c",IF(AD$24:AD$26="(",-AE$24:AE$26,AE$24:AE$26)))) -> 0 | AF22: =IF(AD22="(",")","") ->  | AG22: =IF((SUM(IF($AK$24:$AK$26="c",IF(AG$24:AG$26="(",-AH$24:AH$26,AH$24:AH$26))))<0,"(","") ->  | AH22: =ABS(SUM(IF($AK$24:$AK$26="c",IF(AG$24:AG$26="(",-AH$24:AH$26,AH$24:AH$26)))) -> 0 | AI22: =IF(AG22="(",")","") ->  | AK22: c
G23: ="за "&IF(god="","предыдущий год",god-1&" год") -> за 2015 год | H23: 5315 | I23: =IF((SUM(IF($AK$24:$AK$26="p",IF(I$24:I$26="(",-J$24:J$26,J$24:J$26))))<0,"(","") ->  | J23: =ABS(SUM(IF($AK$24:$AK$26="p",IF(I$24:I$26="(",-J$24:J$26,J$24:J$26)))) -> 0 | K23: =IF(I23="(",")","") ->  | L23: =IF((SUM(IF($AK$24:$AK$26="p",IF(L$24:L$26="(",-M$24:M$26,M$24:M$26))))<0,"(","") ->  | M23: =ABS(SUM(IF($AK$24:$AK$26="p",IF(L$24:L$26="(",-M$24:M$26,M$24:M$26)))) -> 0 | N23: =IF(L23="(",")","") ->  | O23: =IF((SUM(IF($AK$24:$AK$26="p",IF(O$24:O$26="(",-P$24:P$26,P$24:P$26))))<0,"(","") ->  | P23: =ABS(SUM(IF($AK$24:$AK$26="p",IF(O$24:O$26="(",-P$24:P$26,P$24:P$26)))) -> 0 | Q23: =IF(O23="(",")","") ->  | R23: ( | S23: =SUMIF($AK$24:$AK$26,$AK23,S$24:S$26) -> 0 | T23: ) | U23: =IF((SUM(IF($AK$24:$AK$26="p",IF(U$24:U$26="(",-V$24:V$26,V$24:V$26))))<0,"(","") ->  | V23: =ABS(SUM(IF($AK$24:$AK$26="p",IF(U$24:U$26="(",-V$24:V$26,V$24:V$26)))) -> 0 | W23: =IF(U23="(",")","") ->  | X23: =IF((SUM(IF($AK$24:$AK$26="p",IF(X$24:X$26="(",-Y$24:Y$26,Y$24:Y$26))))<0,"(","") ->  | Y23: =ABS(SUM(IF($AK$24:$AK$26="p",IF(X$24:X$26="(",-Y$24:Y$26,Y$24:Y$26)))) -> 0 | Z23: =IF(X23="(",")","") ->  | AA23: =IF((SUM(IF($AK$24:$AK$26="p",IF(AA$24:AA$26="(",-AB$24:AB$26,AB$24:AB$26))))<0,"(","") ->  | AB23: =ABS(SUM(IF($AK$24:$AK$26="p",IF(AA$24:AA$26="(",-AB$24:AB$26,AB$24:AB$26)))) -> 0 | AC23: =IF(AA23="(",")","") ->  | AD23: =IF((SUM(IF($AK$24:$AK$26="p",IF(AD$24:AD$26="(",-AE$24:AE$26,AE$24:AE$26))))<0,"(","") ->  | AE23: =ABS(SUM(IF($AK$24:$AK$26="p",IF(AD$24:AD$26="(",-AE$24:AE$26,AE$24:AE$26)))) -> 0 | AF23: =IF(AD23="(",")","") ->  | AG23: =IF((SUM(IF($AK$24:$AK$26="p",IF(AG$24:AG$26="(",-AH$24:AH$26,AH$24:AH$26))))<0,"(","") ->  | AH23: =ABS(SUM(IF($AK$24:$AK$26="p",IF(AG$24:AG$26="(",-AH$24:AH$26,AH$24:AH$26)))) -> 0 | AI23: =IF(AG23="(",")","") ->  | AK23: p
E24: 1.1.2.1 | G24: ="за "&IF(god="","отчётный год",god&" год") -> за 2016 год | R24: ( | T24: ) | AK24: c
G25: ="за "&IF(god="","предыдущий год",god-1&" год") -> за 2015 год | R25: ( | T25: ) | AK25: p
F26: Добавить группу/вид
E27: 1.1.3 | F27: Финансовых вложений - итого | G27: ="за "&IF(god="","отчётный год",god&" год") -> за 2016 год | H27: 5300 | I27: =IF((IF(I17="(",-J17,J17)+IF(I22="(",-J22,J22))<0,"(","") ->  | J27: =ABS(IF(I17="(",-J17,J17)+IF(I22="(",-J22,J22)) -> 0 | K27: =IF(I27="(",")","") ->  | L27: =IF((IF(L17="(",-M17,M17)+IF(L22="(",-M22,M22))<0,"(","") ->  | M27: =ABS(IF(L17="(",-M17,M17)+IF(L22="(",-M22,M22)) -> 0 | N27: =IF(L27="(",")","") ->  | O27: =IF((IF(O17="(",-P17,P17)+IF(O22="(",-P22,P22))<0,"(","") ->  | P27: =ABS(IF(O17="(",-P17,P17)+IF(O22="(",-P22,P22)) -> 0 | Q27: =IF(O27="(",")","") ->  | R27: ( | S27: =S17+S22 -> 0 | T27: ) | U27: =IF((IF(U17="(",-V17,V17)+IF(U22="(",-V22,V22))<0,"(","") ->  | V27: =ABS(IF(U17="(",-V17,V17)+IF(U22="(",-V22,V22)) -> 0 | W27: =IF(U27="(",")","") ->  | X27: =IF((IF(X17="(",-Y17,Y17)+IF(X22="(",-Y22,Y22))<0,"(","") ->  | Y27: =ABS(IF(X17="(",-Y17,Y17)+IF(X22="(",-Y22,Y22)) -> 0 | Z27: =IF(X27="(",")","") ->  | AA27: =IF((IF(AA17="(",-AB17,AB17)+IF(AA22="(",-AB22,AB22))<0,"(","") ->  | AB27: =ABS(IF(AA17="(",-AB17,AB17)+IF(AA22="(",-AB22,AB22)) -> 0 | AC27: =IF(AA27="(",")","") ->  | AD27: =IF((IF(AD17="(",-AE17,AE17)+IF(AD22="(",-AE22,AE22))<0,"(","") ->  | AE27: =ABS(IF(AD17="(",-AE17,AE17)+IF(AD22="(",-AE22,AE22)) -> 0 | AF27: =IF(AD27="(",")","") ->  | AG27: =IF((IF(AG17="(",-AH17,AH17)+IF(AG22="(",-AH22,AH22))<0,"(","") ->  | AH27: =ABS(IF(AG17="(",-AH17,AH17)+IF(AG22="(",-AH22,AH22)) -> 0 | AI27: =IF(AG27="(",")","") ->  | AK27: c
G28: ="за "&IF(god="","предыдущий год",god-1&" год") -> за 2015 год | H28: 5310 | I28: =IF((IF(I18="(",-J18,J18)+IF(I23="(",-J23,J23))<0,"(","") ->  | J28: =ABS(IF(I18="(",-J18,J18)+IF(I23="(",-J23,J23)) -> 0 | K28: =IF(I28="(",")","") ->  | L28: =IF((IF(L18="(",-M18,M18)+IF(L23="(",-M23,M23))<0,"(","") ->  | M28: =ABS(IF(L18="(",-M18,M18)+IF(L23="(",-M23,M23)) -> 0 | N28: =IF(L28="(",")","") ->  | O28: =IF((IF(O18="(",-P18,P18)+IF(O23="(",-P23,P23))<0,"(","") ->  | P28: =ABS(IF(O18="(",-P18,P18)+IF(O23="(",-P23,P23)) -> 0 | Q28: =IF(O28="(",")","") ->  | R28: ( | S28: =S18+S23 -> 0 | T28: ) | U28: =IF((IF(U18="(",-V18,V18)+IF(U23="(",-V23,V23))<0,"(","") ->  | V28: =ABS(IF(U18="(",-V18,V18)+IF(U23="(",-V23,V23)) -> 0 | W28: =IF(U28="(",")","") ->  | X28: =IF((IF(X18="(",-Y18,Y18)+IF(X23="(",-Y23,Y23))<0,"(","") ->  | Y28: =ABS(IF(X18="(",-Y18,Y18)+IF(X23="(",-Y23,Y23)) -> 0 | Z28: =IF(X28="(",")","") ->  | AA28: =IF((IF(AA18="(",-AB18,AB18)+IF(AA23="(",-AB23,AB23))<0,"(","") ->  | AB28: =ABS(IF(AA18="(",-AB18,AB18)+IF(AA23="(",-AB23,AB23)) -> 0 | AC28: =IF(AA28="(",")","") ->  | AD28: =IF((IF(AD18="(",-AE18,AE18)+IF(AD23="(",-AE23,AE23))<0,"(","") ->  | AE28: =ABS(IF(AD18="(",-AE18,AE18)+IF(AD23="(",-AE23,AE23)) -> 0 | AF28: =IF(AD28="(",")","") ->  | AG28: =IF((IF(AG18="(",-AH18,AH18)+IF(AG23="(",-AH23,AH23))<0,"(","") ->  | AH28: =ABS(IF(AG18="(",-AH18,AH18)+IF(AG23="(",-AH23,AH23)) -> 0 | AI28: =IF(AG28="(",")","") ->  | AK28: p
E30: * | F30: Накопленная корректировка определяется как:
F31: - разница между первоначальной и текущей рыночной стоимостью - по финансовым вложениям, по которым можно определить текущую рыночную стоимость;
F32: - начисленная в течение срока обращения разница между первоначальной стоимостью и номинальной стоимостью - по долговым ценным бумагам, по которым не определяется текущая рыночная стоимость;
F33: - величина резерва под обесценение финансовых вложений, созданного на предыдущую отчетную дату, - по финансовым вложениям, по которым не определяется текущая рыночная стоимость;
D36: 3.2. Иное использование финансовых вложений
P38: =IF(unit="","",unit) -> тыс.руб.
E39: № п/п | F39: Наименование показателя | H39: Код строки | I39: ="На "&IF(report_date = "","отчётную дату отчётного года",report_date& " г.") -> На 31.12.2016 г. | L39: ="На 31 декабря "&IF(god = "","предыдущего года",god-1& " г.") -> На 31 декабря 2015 г. | O39: ="На 31 декабря "&IF(god = "","года, предшествующего предыдущему",god-2& " г.") -> На 31 декабря 2014 г.
E40: 1 | F40: 2 | H40: 3 | J40: 4 | L40: 4 | P40: 5
E41: 1.2.1 | F41: Финансовые вложения, находящиеся в залоге - всего, в том числе: | H41: 5320 | I41: =IF((SUMIF(I42:I43,"",J42:J43)-SUMIF(I42:I43,"(",J42:J43))<0,"(","") ->  | J41: =ABS(SUMIF(I42:I43,"",J42:J43)-SUMIF(I42:I43,"(",J42:J43)) -> 0 | K41: =IF(I41="(",")","") ->  | L41: =IF((SUMIF(L42:L43,"",M42:M43)-SUMIF(L42:L43,"(",M42:M43))<0,"(","") ->  | M41: =ABS(SUMIF(L42:L43,"",M42:M43)-SUMIF(L42:L43,"(",M42:M43)) -> 0 | N41: =IF(L41="(",")","") ->  | O41: =IF((SUMIF(O42:O43,"",P42:P43)-SUMIF(O42:O43,"(",P42:P43))<0,"(","") ->  | P41: =ABS(SUMIF(O42:O43,"",P42:P43)-SUMIF(O42:O43,"(",P42:P43)) -> 0 | Q41: =IF(O41="(",")","") -> 
E42: 1.2.1.1
F43: Добавить группу/вид
E44: 1.2.2 | F44: Финансовые вложения, переданные третьим лицам (кроме продажи) - всего, в том числе: | H44: 5325 | I44: =IF((SUMIF(I45:I46,"",J45:J46)-SUMIF(I45:I46,"(",J45:J46))<0,"(","") ->  | J44: =ABS(SUMIF(I45:I46,"",J45:J46)-SUMIF(I45:I46,"(",J45:J46)) -> 0 | K44: =IF(I44="(",")","") ->  | L44: =IF((SUMIF(L45:L46,"",M45:M46)-SUMIF(L45:L46,"(",M45:M46))<0,"(","") ->  | M44: =ABS(SUMIF(L45:L46,"",M45:M46)-SUMIF(L45:L46,"(",M45:M46)) -> 0 | N44: =IF(L44="(",")","") ->  | O44: =IF((SUMIF(O45:O46,"",P45:P46)-SUMIF(O45:O46,"(",P45:P46))<0,"(","") ->  | P44: =ABS(SUMIF(O45:O46,"",P45:P46)-SUMIF(O45:O46,"(",P45:P46)) -> 0 | Q44: =IF(O44="(",")","") -> 
E45: 1.2.2.1
F46: Добавить группу/вид
E47: 1.2.3 | F47: Иное использование финансовых вложений | H47: 5329
D50: 4. Запасы
D52: 4.1. Наличие и движение запасов
AH54: =IF(unit="","",unit) -> тыс.руб.
E55: № п/п | F55: Наименование показателя | G55: Период | H55: Код строки | I55: На начало года | O55: Изменения за период | AD55: На конец периода
I56: себестоимость | L56: величина резерва под снижение стоимости | O56: поступления и затраты | R56: выбыло | X56: убытков от снижения стоимости | AA56: оборот запасов между их группами (видами) | AD56: себестоимость | AG56: величина резерва под снижение стоимости
R57: себестоимость | U57: резерв под снижение стоимости
E58: 1 | F58: 2 | G58: 3 | H58: 4 | J58: 5 | L58: 6 | P58: 7 | R58: 8 | V58: 9 | X58: 10 | AB58: 11 | AE58: 12 | AG58: 13
E59: 2.1 | F59: Запасы - всего, в том числе: | G59: ="за "&IF(god="","отчётный год",god&" год") -> за 2016 год | H59: 5400 | I59: =IF((SUM(IF($AK$61:$AK$63="c",IF(I$61:I$63="(",-J$61:J$63,J$61:J$63))))<0,"(","") ->  | J59: =ABS(SUM(IF($AK$61:$AK$63="c",IF(I$61:I$63="(",-J$61:J$63,J$61:J$63)))) -> 47372 | K59: =IF(I59="(",")","") ->  | L59: ( | M59: =SUMIF($AK$61:$AK$63,$AK59,M$61:M$63) -> 0 | N59: ) | O59: =IF((SUM(IF($AK$61:$AK$63="c",IF(O$61:O$63="(",-P$61:P$63,P$61:P$63))))<0,"(","") ->  | P59: =ABS(SUM(IF($AK$61:$AK$63="c",IF(O$61:O$63="(",-P$61:P$63,P$61:P$63)))) -> 124557 | Q59: =IF(O59="(",")","") ->  | R59: ( | S59: =SUMIF($AK$61:$AK$63,$AK59,S$61:S$63) -> 118322 | T59: ) | U59: =IF((SUM(IF($AK$61:$AK$63="c",IF(U$61:U$63="(",-V$61:V$63,V$61:V$63))))<0,"(","") ->  | V59: =ABS(SUM(IF($AK$61:$AK$63="c",IF(U$61:U$63="(",-V$61:V$63,V$61:V$63)))) -> 0 | W59: =IF(U59="(",")","") ->  | X59: =IF((SUM(IF($AK$61:$AK$63="c",IF(X$61:X$63="(",-Y$61:Y$63,Y$61:Y$63))))<0,"(","") ->  | Y59: =ABS(SUM(IF($AK$61:$AK$63="c",IF(X$61:X$63="(",-Y$61:Y$63,Y$61:Y$63)))) -> 0 | Z59: =IF(X59="(",")","") ->  | AB59: x | AD59: =IF((SUM(IF($AK$61:$AK$63="c",IF(AD$61:AD$63="(",-AE$61:AE$63,AE$61:AE$63))))<0,"(","") ->  | AE59: =ABS(SUM(IF($AK$61:$AK$63="c",IF(AD$61:AD$63="(",-AE$61:AE$63,AE$61:AE$63)))) -> 53607 | AF59: =IF(AD59="(",")","") ->  | AG59: ( | AH59: =SUMIF($AK$61:$AK$63,$AK59,AH$61:AH$63) -> 0 | AI59: ) | AK59: c
G60: ="за "&IF(god="","предыдущий год",god-1&" год") -> за 2015 год | H60: 5420 | I60: =IF((SUM(IF($AK$61:$AK$63="p",IF(I$61:I$63="(",-J$61:J$63,J$61:J$63))))<0,"(","") ->  | J60: =ABS(SUM(IF($AK$61:$AK$63="p",IF(I$61:I$63="(",-J$61:J$63,J$61:J$63)))) -> 44405 | K60: =IF(I60="(",")","") ->  | L60: ( | M60: =SUMIF($AK$61:$AK$63,$AK60,M$61:M$63) -> 0 | N60: ) | O60: =IF((SUM(IF($AK$61:$AK$63="p",IF(O$61:O$63="(",-P$61:P$63,P$61:P$63))))<0,"(","") ->  | P60: =ABS(SUM(IF($AK$61:$AK$63="p",IF(O$61:O$63="(",-P$61:P$63,P$61:P$63)))) -> 111957 | Q60: =IF(O60="(",")","") ->  | R60: ( | S60: =SUMIF($AK$61:$AK$63,$AK60,S$61:S$63) -> 108990 | T60: ) | U60: =IF((SUM(IF($AK$61:$AK$63="p",IF(U$61:U$63="(",-V$61:V$63,V$61:V$63))))<0,"(","") ->  | V60: =ABS(SUM(IF($AK$61:$AK$63="p",IF(U$61:U$63="(",-V$61:V$63,V$61:V$63)))) -> 0 | W60: =IF(U60="(",")","") ->  | X60: =IF((SUM(IF($AK$61:$AK$63="p",IF(X$61:X$63="(",-Y$61:Y$63,Y$61:Y$63))))<0,"(","") ->  | Y60: =ABS(SUM(IF($AK$61:$AK$63="p",IF(X$61:X$63="(",-Y$61:Y$63,Y$61:Y$63)))) -> 0 | Z60: =IF(X60="(",")","") ->  | AB60: x | AD60: =IF((SUM(IF($AK$61:$AK$63="p",IF(AD$61:AD$63="(",-AE$61:AE$63,AE$61:AE$63))))<0,"(","") ->  | AE60: =ABS(SUM(IF($AK$61:$AK$63="p",IF(AD$61:AD$63="(",-AE$61:AE$63,AE$61:AE$63)))) -> 47372 | AF60: =IF(AD60="(",")","") ->  | AG60: ( | AH60: =SUMIF($AK$61:$AK$63,$AK60,AH$61:AH$63) -> 0 | AI60: ) | AK60: p
E61: 2.1.1 | G61: ="за "&IF(god="","отчётный год",god&" год") -> за 2016 год | J61: 47372 | L61: ( | N61: ) | P61: 124557 | R61: ( | S61: 118322 | T61: ) | AE61: 53607 | AG61: ( | AI61: ) | AK61: c
G62: ="за "&IF(god="","предыдущий год",god-1&" год") -> за 2015 год | J62: 44405 | L62: ( | N62: ) | P62: 111957 | R62: ( | S62: 108990 | T62: ) | AE62: 47372 | AG62: ( | AI62: ) | AK62: p
F63: Добавить группу/вид
D66: 4.2. Запасы в залоге
P68: =IF(unit="","",unit) -> тыс.руб.
E69: № п/п | F69: Наименование показателя | H69: Код строки | I69: ="На "&IF(report_date = "","отчётную дату отчётного года",report_date& " г.") -> На 31.12.2016 г. | L69: ="На 31 декабря "&IF(god = "","предыдущего года",god-1& " г.") -> На 31 декабря 2015 г. | O69: ="На 31 декабря "&IF(god = "","года, предшествующего предыдущему",god-2& " г.") -> На 31 декабря 2014 г.
E70: 1 | F70: 2 | H70: 3 | J70: 4 | L70: 5 | P70: 6
E71: 2.2.1 | F71: Запасы, не оплаченные на отчетную дату - всего, в том числе: | H71: 5440 | I71: =IF((SUMIF(I72:I73,"",J72:J73)-SUMIF(I72:I73,"(",J72:J73))<0,"(","") ->  | J71: =ABS(SUMIF(I72:I73,"",J72:J73)-SUMIF(I72:I73,"(",J72:J73)) -> 0 | K71: =IF(I71="(",")","") ->  | L71: =IF((SUMIF(L72:L73,"",M72:M73)-SUMIF(L72:L73,"(",M72:M73))<0,"(","") ->  | M71: =ABS(SUMIF(L72:L73,"",M72:M73)-SUMIF(L72:L73,"(",M72:M73)) -> 0 | N71: =IF(L71="(",")","") ->  | O71: =IF((SUMIF(O72:O73,"",P72:P73)-SUMIF(O72:O73,"(",P72:P73))<0,"(","") ->  | P71: =ABS(SUMIF(O72:O73,"",P72:P73)-SUMIF(O72:O73,"(",P72:P73)) -> 0 | Q71: =IF(O71="(",")","") -> 
E72: 2.2.1.1
F73: Добавить группу/вид
E74: 2.2.2 | F74: Запасы, находящиеся в залоге по договору - всего, в том числе: | H74: 5445 | I74: =IF((SUMIF(I75:I76,"",J75:J76)-SUMIF(I75:I76,"(",J75:J76))<0,"(","") ->  | J74: =ABS(SUMIF(I75:I76,"",J75:J76)-SUMIF(I75:I76,"(",J75:J76)) -> 0 | K74: =IF(I74="(",")","") ->  | L74: =IF((SUMIF(L75:L76,"",M75:M76)-SUMIF(L75:L76,"(",M75:M76))<0,"(","") ->  | M74: =ABS(SUMIF(L75:L76,"",M75:M76)-SUMIF(L75:L76,"(",M75:M76)) -> 0 | N74: =IF(L74="(",")","") ->  | O74: =IF((SUMIF(O75:O76,"",P75:P76)-SUMIF(O75:O76,"(",P75:P76))<0,"(","") ->  | P74: =ABS(SUMIF(O75:O76,"",P75:P76)-SUMIF(O75:O76,"(",P75:P76)) -> 0 | Q74: =IF(O74="(",")","") -> 
E75: 2.2.2.1
F76: Добавить группу/вид

Sheet Стр 10-12
AM7: Форма 0710005 с. 10-12
D8: 5. Дебиторская и кредиторская задолженность
D10: 5.1. Наличие и движение дебиторской задолженности
AK12: =IF(unit="","",unit) -> тыс.руб.
E13: № п/п | F13: Наименование показателя | G13: Период | H13: Код строки | I13: На начало года | O13: Изменения за период | AG13: На конец периода
I14: учтенная по условиям договора | L14: величина резерва по сомнительным долгам | O14: поступление | U14: выбыло | AD14: перевод из долго- в краткосрочную задолженность | AG14: учтенная по условиям договора | AJ14: величина резерва по сомнительным долгам
O15: в результате хозяйственных операций (сумма долга по сделке операции) * | R15: причитающиеся проценты, штрафы и иные начисления * | U15: погашение | X15: списание на финансовый результат * | AA15: восстановление резерва
E16: 1 | F16: 2 | G16: 3 | H16: 4 | J16: 5 | L16: 6 | P16: 7 | S16: 8 | U16: 9 | Y16: 10 | AB16: 11 | AD16: 12 | AH16: 13 | AJ16: 14
E17: 1.1.1 | F17: Долгосрочная дебиторская задолженность - всего, в том числе: | G17: ="за "&IF(god="","отчётный год",god&" год") -> за 2016 год | H17: 5501 | I17: =IF((SUM(IF($AN$19:$AN$21="c",IF(I$19:I$21="(",-J$19:J$21,J$19:J$21))))<0,"(","") ->  | J17: =ABS(SUM(IF($AN$19:$AN$21="c",IF(I$19:I$21="(",-J$19:J$21,J$19:J$21)))) -> 0 | K17: =IF(I17="(",")","") ->  | L17: ( | M17: =SUMIF($AN$19:$AN$21,$AN17,M$19:M$21) -> 0 | N17: ) | O17: =IF((SUM(IF($AN$19:$AN$21="c",IF(O$19:O$21="(",-P$19:P$21,P$19:P$21))))<0,"(","") ->  | P17: =ABS(SUM(IF($AN$19:$AN$21="c",IF(O$19:O$21="(",-P$19:P$21,P$19:P$21)))) -> 0 | Q17: =IF(O17="(",")","") ->  | R17: =IF((SUM(IF($AN$19:$AN$21="c",IF(R$19:R$21="(",-S$19:S$21,S$19:S$21))))<0,"(","") ->  | S17: =ABS(SUM(IF($AN$19:$AN$21="c",IF(R$19:R$21="(",-S$19:S$21,S$19:S$21)))) -> 0 | T17: =IF(R17="(",")","") ->  | U17: ( | V17: =SUMIF($AN$19:$AN$21,$AN17,V$19:V$21) -> 0 | W17: ) | X17: ( | Y17: =SUMIF($AN$19:$AN$21,$AN17,Y$19:Y$21) -> 0 | Z17: ) | AA17: =IF((SUM(IF($AN$19:$AN$21="c",IF(AA$19:AA$21="(",-AB$19:AB$21,AB$19:AB$21))))<0,"(","") ->  | AB17: =ABS(SUM(IF($AN$19:$AN$21="c",IF(AA$19:AA$21="(",-AB$19:AB$21,AB$19:AB$21)))) -> 0 | AC17: =IF(AA17="(",")","") ->  | AD17: ( | AE17: =SUMIF($AN$19:$AN$21,$AN17,AE$19:AE$21) -> 0 | AF17: ) | AG17: =IF((SUM(IF($AN$19:$AN$21="c",IF(AG$19:AG$21="(",-AH$19:AH$21,AH$19:AH$21))))<0,"(","") ->  | AH17: =ABS(SUM(IF($AN$19:$AN$21="c",IF(AG$19:AG$21="(",-AH$19:AH$21,AH$19:AH$21)))) -> 0 | AI17: =IF(AG17="(",")","") ->  | AJ17: ( | AK17: =SUMIF($AN$19:$AN$21,$AN17,AK$19:AK$21) -> 0 | AL17: ) | AN17: c
G18: ="за "&IF(god="","предыдущий год",god-1&" год") -> за 2015 год | H18: 5521 | I18: =IF((SUM(IF($AN$19:$AN$21="p",IF(I$19:I$21="(",-J$19:J$21,J$19:J$21))))<0,"(","") ->  | J18: =ABS(SUM(IF($AN$19:$AN$21="p",IF(I$19:I$21="(",-J$19:J$21,J$19:J$21)))) -> 0 | K18: =IF(I18="(",")","") ->  | L18: ( | M18: =SUMIF($AN$19:$AN$21,$AN18,M$19:M$21) -> 0 | N18: ) | O18: =IF((SUM(IF($AN$19:$AN$21="p",IF(O$19:O$21="(",-P$19:P$21,P$19:P$21))))<0,"(","") ->  | P18: =ABS(SUM(IF($AN$19:$AN$21="p",IF(O$19:O$21="(",-P$19:P$21,P$19:P$21)))) -> 0 | Q18: =IF(O18="(",")","") ->  | R18: =IF((SUM(IF($AN$19:$AN$21="p",IF(R$19:R$21="(",-S$19:S$21,S$19:S$21))))<0,"(","") ->  | S18: =ABS(SUM(IF($AN$19:$AN$21="p",IF(R$19:R$21="(",-S$19:S$21,S$19:S$21)))) -> 0 | T18: =IF(R18="(",")","") ->  | U18: ( | V18: =SUMIF($AN$19:$AN$21,$AN18,V$19:V$21) -> 0 | W18: ) | X18: ( | Y18: =SUMIF($AN$19:$AN$21,$AN18,Y$19:Y$21) -> 0 | Z18: ) | AA18: =IF((SUM(IF($AN$19:$AN$21="p",IF(AA$19:AA$21="(",-AB$19:AB$21,AB$19:AB$21))))<0,"(","") ->  | AB18: =ABS(SUM(IF($AN$19:$AN$21="p",IF(AA$19:AA$21="(",-AB$19:AB$21,AB$19:AB$21)))) -> 0 | AC18: =IF(AA18="(",")","") ->  | AD18: ( | AE18: =SUMIF($AN$19:$AN$21,$AN18,AE$19:AE$21) -> 0 | AF18: ) | AG18: =IF((SUM(IF($AN$19:$AN$21="p",IF(AG$19:AG$21="(",-AH$19:AH$21,AH$19:AH$21))))<0,"(","") ->  | AH18: =ABS(SUM(IF($AN$19:$AN$21="p",IF(AG$19:AG$21="(",-AH$19:AH$21,AH$19:AH$21)))) -> 0 | AI18: =IF(AG18="(",")","") ->  | AJ18: ( | AK18: =SUMIF($AN$19:$AN$21,$AN18,AK$19:AK$21) -> 0 | AL18: ) | AN18: p
E19: 1.1.1.1 | G19: ="за "&IF(god="","отчётный год",god&" год") -> за 2016 год | L19: ( | N19: ) | U19: ( | W19: ) | X19: ( | Z19: ) | AD19: ( | AF19: ) | AJ19: ( | AL19: ) | AN19: c
G20: ="за "&IF(god="","предыдущий год",god-1&" год") -> за 2015 год | L20: ( | N20: ) | U20: ( | W20: ) | X20: ( | Z20: ) | AD20: ( | AF20: ) | AJ20: ( | AL20: ) | AN20: p
F21: Добавить вид
E22: 1.1.2 | F22: Краткосрочная дебиторская задолженность - всего, в том числе: | G22: ="за "&IF(god="","отчётный год",god&" год") -> за 2016 год | H22: 5510 | I22: =IF((SUM(IF($AN$24:$AN$26="c",IF(I$24:I$26="(",-J$24:J$26,J$24:J$26))))<0,"(","") ->  | J22: =ABS(SUM(IF($AN$24:$AN$26="c",IF(I$24:I$26="(",-J$24:J$26,J$24:J$26)))) -> 217293 | K22: =IF(I22="(",")","") ->  | L22: ( | M22: =SUMIF($AN$24:$AN$26,$AN22,M$24:M$26) -> 83393 | N22: ) | O22: =IF((SUM(IF($AN$24:$AN$26="c",IF(O$24:O$26="(",-P$24:P$26,P$24:P$26))))<0,"(","") ->  | P22: =ABS(SUM(IF($AN$24:$AN$26="c",IF(O$24:O$26="(",-P$24:P$26,P$24:P$26)))) -> 0 | Q22: =IF(O22="(",")","") ->  | R22: =IF((SUM(IF($AN$24:$AN$26="c",IF(R$24:R$26="(",-S$24:S$26,S$24:S$26))))<0,"(","") ->  | S22: =ABS(SUM(IF($AN$24:$AN$26="c",IF(R$24:R$26="(",-S$24:S$26,S$24:S$26)))) -> 0 | T22: =IF(R22="(",")","") ->  | U22: ( | V22: =SUMIF($AN$24:$AN$26,$AN22,V$24:V$26) -> 0 | W22: ) | X22: ( | Y22: =SUMIF($AN$24:$AN$26,$AN22,Y$24:Y$26) -> 0 | Z22: ) | AA22: =IF((SUM(IF($AN$24:$AN$26="c",IF(AA$24:AA$26="(",-AB$24:AB$26,AB$24:AB$26))))<0,"(","") ->  | AB22: =ABS(SUM(IF($AN$24:$AN$26="c",IF(AA$24:AA$26="(",-AB$24:AB$26,AB$24:AB$26)))) -> 0 | AC22: =IF(AA22="(",")","") ->  | AE22: x | AG22: =IF((SUM(IF($AN$24:$AN$26="c",IF(AG$24:AG$26="(",-AH$24:AH$26,AH$24:AH$26))))<0,"(","") ->  | AH22: =ABS(SUM(IF($AN$24:$AN$26="c",IF(AG$24:AG$26="(",-AH$24:AH$26,AH$24:AH$26)))) -> 213418 | AI22: =IF(AG22="(",")","") ->  | AJ22: ( | AK22: =SUMIF($AN$24:$AN$26,$AN22,AK$24:AK$26) -> 82040 | AL22: ) | AN22: c
G23: ="за "&IF(god="","предыдущий год",god-1&" год") -> за 2015 год | H23: 5530 | I23: =IF((SUM(IF($AN$24:$AN$26="p",IF(I$24:I$26="(",-J$24:J$26,J$24:J$26))))<0,"(","") ->  | J23: =ABS(SUM(IF($AN$24:$AN$26="p",IF(I$24:I$26="(",-J$24:J$26,J$24:J$26)))) -> 163920 | K23: =IF(I23="(",")","") ->  | L23: ( | M23: =SUMIF($AN$24:$AN$26,$AN23,M$24:M$26) -> 92595 | N23: ) | O23: =IF((SUM(IF($AN$24:$AN$26="p",IF(O$24:O$26="(",-P$24:P$26,P$24:P$26))))<0,"(","") ->  | P23: =ABS(SUM(IF($AN$24:$AN$26="p",IF(O$24:O$26="(",-P$24:P$26,P$24:P$26)))) -> 0 | Q23: =IF(O23="(",")","") ->  | R23: =IF((SUM(IF($AN$24:$AN$26="p",IF(R$24:R$26="(",-S$24:S$26,S$24:S$26))))<0,"(","") ->  | S23: =ABS(SUM(IF($AN$24:$AN$26="p",IF(R$24:R$26="(",-S$24:S$26,S$24:S$26)))) -> 0 | T23: =IF(R23="(",")","") ->  | U23: ( | V23: =SUMIF($AN$24:$AN$26,$AN23,V$24:V$26) -> 0 | W23: ) | X23: ( | Y23: =SUMIF($AN$24:$AN$26,$AN23,Y$24:Y$26) -> 0 | Z23: ) | AA23: =IF((SUM(IF($AN$24:$AN$26="p",IF(AA$24:AA$26="(",-AB$24:AB$26,AB$24:AB$26))))<0,"(","") ->  | AB23: =ABS(SUM(IF($AN$24:$AN$26="p",IF(AA$24:AA$26="(",-AB$24:AB$26,AB$24:AB$26)))) -> 0 | AC23: =IF(AA23="(",")","") ->  | AE23: x | AG23: =IF((SUM(IF($AN$24:$AN$26="p",IF(AG$24:AG$26="(",-AH$24:AH$26,AH$24:AH$26))))<0,"(","") ->  | AH23: =ABS(SUM(IF($AN$24:$AN$26="p",IF(AG$24:AG$26="(",-AH$24:AH$26,AH$24:AH$26)))) -> 217293 | AI23: =IF(AG23="(",")","") ->  | AJ23: ( | AK23: =SUMIF($AN$24:$AN$26,$AN23,AK$24:AK$26) -> 83393 | AL23: ) | AN23: p
E24: 1.1.2.1 | G24: ="за "&IF(god="","отчётный год",god&" год") -> за 2016 год | J24: 217293 | L24: ( | M24: 83393 | N24: ) | U24: ( | W24: ) | X24: ( | Z24: ) | AE24: x | AH24: 213418 | AJ24: ( | AK24: 82040 | AL24: ) | AN24: c
G25: ="за "&IF(god="","предыдущий год",god-1&" год") -> за 2015 год | J25: 163920 | L25: ( | M25: 92595 | N25: ) | U25: ( | W25: ) | X25: ( | Z25: ) | AE25: x | AH25: 217293 | AJ25: ( | AK25: 83393 | AL25: ) | AN25: p
F26: Добавить вид
E27: 1.1.3 | F27: Итого | G27: ="за "&IF(god="","отчётный год",god&" год") -> за 2016 год | H27: 5500 | I27: =IF((IF(I17="(",-J17,J17)+IF(I22="(",-J22,J22))<0,"(","") ->  | J27: =ABS(IF(I17="(",-J17,J17)+IF(I22="(",-J22,J22)) -> 217293 | K27: =IF(I27="(",")","") ->  | L27: ( | M27: =M17+M22 -> 83393 | N27: ) | O27: =IF((IF(O17="(",-P17,P17)+IF(O22="(",-P22,P22))<0,"(","") ->  | P27: =ABS(IF(O17="(",-P17,P17)+IF(O22="(",-P22,P22)) -> 0 | Q27: =IF(O27="(",")","") ->  | R27: =IF((IF(R17="(",-S17,S17)+IF(R22="(",-S22,S22))<0,"(","") ->  | S27: =ABS(IF(R17="(",-S17,S17)+IF(R22="(",-S22,S22)) -> 0 | T27: =IF(R27="(",")","") ->  | U27: ( | V27: =V17+V22 -> 0 | W27: ) | X27: ( | Y27: =Y17+Y22 -> 0 | Z27: ) | AA27: =IF((IF(AA17="(",-AB17,AB17)+IF(AA22="(",-AB22,AB22))<0,"(","") ->  | AB27: =ABS(IF(AA17="(",-AB17,AB17)+IF(AA22="(",-AB22,AB22)) -> 0 | AC27: =IF(AA27="(",")","") ->  | AE27: x | AG27: =IF((IF(AG17="(",-AH17,AH17)+IF(AG22="(",-AH22,AH22))<0,"(","") ->  | AH27: =ABS(IF(AG17="(",-AH17,AH17)+IF(AG22="(",-AH22,AH22)) -> 213418 | AI27: =IF(AG27="(",")","") ->  | AJ27: ( | AK27: =AK17+AK22 -> 82040 | AL27: ) | AN27: c
G28: ="за "&IF(god="","предыдущий год",god-1&" год") -> за 2015 год | H28: 5520 | I28: =IF((IF(I18="(",-J18,J18)+IF(I23="(",-J23,J23))<0,"(","") ->  | J28: =ABS(IF(I18="(",-J18,J18)+IF(I23="(",-J23,J23)) -> 163920 | K28: =IF(I28="(",")","") ->  | L28: ( | M28: =M18+M23 -> 92595 | N28: ) | O28: =IF((IF(O18="(",-P18,P18)+IF(O23="(",-P23,P23))<0,"(","") ->  | P28: =ABS(IF(O18="(",-P18,P18)+IF(O23="(",-P23,P23)) -> 0 | Q28: =IF(O28="(",")","") ->  | R28: =IF((IF(R18="(",-S18,S18)+IF(R23="(",-S23,S23))<0,"(","") ->  | S28: =ABS(IF(R18="(",-S18,S18)+IF(R23="(",-S23,S23)) -> 0 | T28: =IF(R28="(",")","") ->  | U28: ( | V28: =V18+V23 -> 0 | W28: ) | X28: ( | Y28: =Y18+Y23 -> 0 | Z28: ) | AA28: =IF((IF(AA18="(",-AB18,AB18)+IF(AA23="(",-AB23,AB23))<0,"(","") ->  | AB28: =ABS(IF(AA18="(",-AB18,AB18)+IF(AA23="(",-AB23,AB23)) -> 0 | AC28: =IF(AA28="(",")","") ->  | AE28: x | AG28: =IF((IF(AG18="(",-AH18,AH18)+IF(AG23="(",-AH23,AH23))<0,"(","") ->  | AH28: =ABS(IF(AG18="(",-AH18,AH18)+IF(AG23="(",-AH23,AH23)) -> 217293 | AI28: =IF(AG28="(",")","") ->  | AJ28: ( | AK28: =AK18+AK23 -> 83393 | AL28: ) | AN28: p
E30: * | F30: Данные раскрываются за минусом дебиторской задолженности, поступившей и погашенной (списанной) в одном отчетном периоде.
D33: 5.2. Просроченная дебиторская задолженность
Y35: =IF(unit="","",unit) -> тыс.руб.
E36: № п/п | F36: Наименование показателя | H36: Код строки | I36: ="На "&IF(report_date = "","отчётную дату отчётного года",report_date& " г.") -> На 31.12.2016 г. | O36: ="На 31 декабря "&IF(god = "","предыдущего года",god-1& " г.") -> На 31 декабря 2015 г. | U36: ="На 31 декабря "&IF(god = "","года, предшествующего предыдущему",god-2& " г.") -> На 31 декабря 2014 г.
I37: учтенная по условиям договора | L37: балансовая стоимость | O37: учтенная по условиям договора | R37: балансовая стоимость | U37: учтенная по условиям договора | X37: балансовая стоимость
E38: 1 | F38: 2 | H38: 3 | J38: 4 | M38: 5 | O38: 6 | S38: 7 | V38: 8 | Y38: 9
E39: 1.2 | F39: Всего, в том числе: | H39: 5540 | I39: =IF((SUMIF(I40:I41,"",J40:J41)-SUMIF(I40:I41,"(",J40:J41))<0,"(","") ->  | J39: =ABS(SUMIF(I40:I41,"",J40:J41)-SUMIF(I40:I41,"(",J40:J41)) -> 0 | K39: =IF(I39="(",")","") ->  | L39: =IF((SUMIF(L40:L41,"",M40:M41)-SUMIF(L40:L41,"(",M40:M41))<0,"(","") ->  | M39: =ABS(SUMIF(L40:L41,"",M40:M41)-SUMIF(L40:L41,"(",M40:M41)) -> 0 | N39: =IF(L39="(",")","") ->  | O39: =IF((SUMIF(O40:O41,"",P40:P41)-SUMIF(O40:O41,"(",P40:P41))<0,"(","") ->  | P39: =ABS(SUMIF(O40:O41,"",P40:P41)-SUMIF(O40:O41,"(",P40:P41)) -> 0 | Q39: =IF(O39="(",")","") ->  | R39: =IF((SUMIF(R40:R41,"",S40:S41)-SUMIF(R40:R41,"(",S40:S41))<0,"(","") ->  | S39: =ABS(SUMIF(R40:R41,"",S40:S41)-SUMIF(R40:R41,"(",S40:S41)) -> 0 | T39: =IF(R39="(",")","") ->  | U39: =IF((SUMIF(U40:U41,"",V40:V41)-SUMIF(U40:U41,"(",V40:V41))<0,"(","") ->  | V39: =ABS(SUMIF(U40:U41,"",V40:V41)-SUMIF(U40:U41,"(",V40:V41)) -> 0 | W39: =IF(U39="(",")","") ->  | X39: =IF((SUMIF(X40:X41,"",Y40:Y41)-SUMIF(X40:X41,"(",Y40:Y41))<0,"(","") ->  | Y39: =ABS(SUMIF(X40:X41,"",Y40:Y41)-SUMIF(X40:X41,"(",Y40:Y41)) -> 0 | Z39: =IF(X39="(",")","") -> 
E40: 1.2.1
F41: Добавить вид
D44: 5.3. Наличие и движение кредиторской задолженности
AB46: =IF(unit="","",unit) -> тыс.руб.
E47: № п/п | F47: Наименование показателя | G47: Период | H47: Код строки | I47: Остаток на начало года | L47: Изменения за период | AA47: Остаток на конец периода
L48: поступление | R48: выбыло | X48: перевод из долго- в краткосрочную задолженность
L49: в результате хозяйственных операций (сумма долга по сделке, операции) ** | O49: причитающиеся проценты, штрафы и иные начисления ** | R49: погашение | U49: списание на финансовый результат **
E50: 1 | F50: 2 | G50: 3 | H50: 4 | J50: 5 | M50: 6 | P50: 7 | R50: 8 | V50: 9 | Y50: 10 | AB50: 11
E51: 1.3.1 | F51: Долгосрочная кредиторская задолженность - всего, в том числе: | G51: ="за "&IF(god="","отчётный год",god&" год") -> за 2016 год | H51: 5551 | I51: =IF((SUM(IF($AE$53:$AE$55="c",IF(I$53:I$55="(",-J$53:J$55,J$53:J$55))))<0,"(","") ->  | J51: =ABS(SUM(IF($AE$53:$AE$55="c",IF(I$53:I$55="(",-J$53:J$55,J$53:J$55)))) -> 0 | K51: =IF(I51="(",")","") ->  | L51: =IF((SUM(IF($AE$53:$AE$55="c",IF(L$53:L$55="(",-M$53:M$55,M$53:M$55))))<0,"(","") ->  | M51: =ABS(SUM(IF($AE$53:$AE$55="c",IF(L$53:L$55="(",-M$53:M$55,M$53:M$55)))) -> 0 | N51: =IF(L51="(",")","") ->  | O51: =IF((SUM(IF($AE$53:$AE$55="c",IF(O$53:O$55="(",-P$53:P$55,P$53:P$55))))<0,"(","") ->  | P51: =ABS(SUM(IF($AE$53:$AE$55="c",IF(O$53:O$55="(",-P$53:P$55,P$53:P$55)))) -> 0 | Q51: =IF(O51="(",")","") ->  | R51: ( | S51: =SUMIF($AE$53:$AE$55,$AE51,S$53:S$55) -> 0 | T51: ) | U51: ( | V51: =SUMIF($AE$53:$AE$55,$AE51,V$53:V$55) -> 0 | W51: ) | X51: ( | Y51: =SUMIF($AE$53:$AE$55,$AE51,Y$53:Y$55) -> 0 | Z51: ) | AA51: =IF((SUM(IF($AE$53:$AE$55="c",IF(AA$53:AA$55="(",-AB$53:AB$55,AB$53:AB$55))))<0,"(","") ->  | AB51: =ABS(SUM(IF($AE$53:$AE$55="c",IF(AA$53:AA$55="(",-AB$53:AB$55,AB$53:AB$55)))) -> 0 | AC51: =IF(AA51="(",")","") ->  | AE51: c
G52: ="за "&IF(god="","предыдущий год",god-1&" год") -> за 2015 год | H52: 5571 | I52: =IF((SUM(IF($AE$53:$AE$55="p",IF(I$53:I$55="(",-J$53:J$55,J$53:J$55))))<0,"(","") ->  | J52: =ABS(SUM(IF($AE$53:$AE$55="p",IF(I$53:I$55="(",-J$53:J$55,J$53:J$55)))) -> 0 | K52: =IF(I52="(",")","") ->  | L52: =IF((SUM(IF($AE$53:$AE$55="p",IF(L$53:L$55="(",-M$53:M$55,M$53:M$55))))<0,"(","") ->  | M52: =ABS(SUM(IF($AE$53:$AE$55="p",IF(L$53:L$55="(",-M$53:M$55,M$53:M$55)))) -> 0 | N52: =IF(L52="(",")","") ->  | O52: =IF((SUM(IF($AE$53:$AE$55="p",IF(O$53:O$55="(",-P$53:P$55,P$53:P$55))))<0,"(","") ->  | P52: =ABS(SUM(IF($AE$53:$AE$55="p",IF(O$53:O$55="(",-P$53:P$55,P$53:P$55)))) -> 0 | Q52: =IF(O52="(",")","") ->  | R52: ( | S52: =SUMIF($AE$53:$AE$55,$AE52,S$53:S$55) -> 0 | T52: ) | U52: ( | V52: =SUMIF($AE$53:$AE$55,$AE52,V$53:V$55) -> 0 | W52: ) | X52: ( | Y52: =SUMIF($AE$53:$AE$55,$AE52,Y$53:Y$55) -> 0 | Z52: ) | AA52: =IF((SUM(IF($AE$53:$AE$55="p",IF(AA$53:AA$55="(",-AB$53:AB$55,AB$53:AB$55))))<0,"(","") ->  | AB52: =ABS(SUM(IF($AE$53:$AE$55="p",IF(AA$53:AA$55="(",-AB$53:AB$55,AB$53:AB$55)))) -> 0 | AC52: =IF(AA52="(",")","") ->  | AE52: p
E53: 1.3.1.1 | G53: ="за "&IF(god="","отчётный год",god&" год") -> за 2016 год | R53: ( | T53: ) | U53: ( | W53: ) | X53: ( | Z53: ) | AE53: c
G54: ="за "&IF(god="","предыдущий год",god-1&" год") -> за 2015 год | R54: ( | T54: ) | U54: ( | W54: ) | X54: ( | Z54: ) | AE54: p
F55: Добавить вид
E56: 1.3.2 | F56: Краткосрочная кредиторская задолженность - всего, в том числе: | G56: ="за "&IF(god="","отчётный год",god&" год") -> за 2016 год | H56: 5560 | I56: =IF((SUM(IF($AE$58:$AE$60="c",IF(I$58:I$60="(",-J$58:J$60,J$58:J$60))))<0,"(","") ->  | J56: =ABS(SUM(IF($AE$58:$AE$60="c",IF(I$58:I$60="(",-J$58:J$60,J$58:J$60)))) -> 672434 | K56: =IF(I56="(",")","") ->  | L56: =IF((SUM(IF($AE$58:$AE$60="c",IF(L$58:L$60="(",-M$58:M$60,M$58:M$60))))<0,"(","") ->  | M56: =ABS(SUM(IF($AE$58:$AE$60="c",IF(L$58:L$60="(",-M$58:M$60,M$58:M$60)))) -> 0 | N56: =IF(L56="(",")","") ->  | O56: =IF((SUM(IF($AE$58:$AE$60="c",IF(O$58:O$60="(",-P$58:P$60,P$58:P$60))))<0,"(","") ->  | P56: =ABS(SUM(IF($AE$58:$AE$60="c",IF(O$58:O$60="(",-P$58:P$60,P$58:P$60)))) -> 0 | Q56: =IF(O56="(",")","") ->  | R56: ( | S56: =SUMIF($AE$58:$AE$60,$AE56,S$58:S$60) -> 0 | T56: ) | U56: ( | V56: =SUMIF($AE$58:$AE$60,$AE56,V$58:V$60) -> 0 | W56: ) | Y56: x | AA56: =IF((SUM(IF($AE$58:$AE$60="c",IF(AA$58:AA$60="(",-AB$58:AB$60,AB$58:AB$60))))<0,"(","") ->  | AB56: =ABS(SUM(IF($AE$58:$AE$60="c",IF(AA$58:AA$60="(",-AB$58:AB$60,AB$58:AB$60)))) -> 626008 | AC56: =IF(AA56="(",")","") ->  | AE56: c
G57: ="за "&IF(god="","предыдущий год",god-1&" год") -> за 2015 год | H57: 5580 | I57: =IF((SUM(IF($AE$58:$AE$60="p",IF(I$58:I$60="(",-J$58:J$60,J$58:J$60))))<0,"(","") ->  | J57: =ABS(SUM(IF($AE$58:$AE$60="p",IF(I$58:I$60="(",-J$58:J$60,J$58:J$60)))) -> 554548 | K57: =IF(I57="(",")","") ->  | L57: =IF((SUM(IF($AE$58:$AE$60="p",IF(L$58:L$60="(",-M$58:M$60,M$58:M$60))))<0,"(","") ->  | M57: =ABS(SUM(IF($AE$58:$AE$60="p",IF(L$58:L$60="(",-M$58:M$60,M$58:M$60)))) -> 0 | N57: =IF(L57="(",")","") ->  | O57: =IF((SUM(IF($AE$58:$AE$60="p",IF(O$58:O$60="(",-P$58:P$60,P$58:P$60))))<0,"(","") ->  | P57: =ABS(SUM(IF($AE$58:$AE$60="p",IF(O$58:O$60="(",-P$58:P$60,P$58:P$60)))) -> 0 | Q57: =IF(O57="(",")","") ->  | R57: ( | S57: =SUMIF($AE$58:$AE$60,$AE57,S$58:S$60) -> 0 | T57: ) | U57: ( | V57: =SUMIF($AE$58:$AE$60,$AE57,V$58:V$60) -> 0 | W57: ) | Y57: x | AA57: =IF((SUM(IF($AE$58:$AE$60="p",IF(AA$58:AA$60="(",-AB$58:AB$60,AB$58:AB$60))))<0,"(","") ->  | AB57: =ABS(SUM(IF($AE$58:$AE$60="p",IF(AA$58:AA$60="(",-AB$58:AB$60,AB$58:AB$60)))) -> 672434 | AC57: =IF(AA57="(",")","") ->  | AE57: p
E58: 1.3.2.1 | G58: ="за "&IF(god="","отчётный год",god&" год") -> за 2016 год | J58: 672434 | R58: ( | T58: ) | U58: ( | W58: ) | Y58: x | AB58: 626008 | AE58: c
G59: ="за "&IF(god="","предыдущий год",god-1&" год") -> за 2015 год | J59: 554548 | R59: ( | T59: ) | U59: ( | W59: ) | Y59: x | AB59: 672434 | AE59: p
F60: Добавить вид
E61: 1.3.3 | F61: Итого | G61: ="за "&IF(god="","отчётный год",god&" год") -> за 2016 год | H61: 5550 | I61: =IF((IF(I51="(",-J51,J51)+IF(I56="(",-J56,J56))<0,"(","") ->  | J61: =ABS(IF(I51="(",-J51,J51)+IF(I56="(",-J56,J56)) -> 672434 | K61: =IF(I61="(",")","") ->  | L61: =IF((IF(L51="(",-M51,M51)+IF(L56="(",-M56,M56))<0,"(","") ->  | M61: =ABS(IF(L51="(",-M51,M51)+IF(L56="(",-M56,M56)) -> 0 | N61: =IF(L61="(",")","") ->  | O61: =IF((IF(O51="(",-P51,P51)+IF(O56="(",-P56,P56))<0,"(","") ->  | P61: =ABS(IF(O51="(",-P51,P51)+IF(O56="(",-P56,P56)) -> 0 | Q61: =IF(O61="(",")","") ->  | R61: ( | S61: =S51+S56 -> 0 | T61: ) | U61: ( | V61: =V51+V56 -> 0 | W61: ) | Y61: x | AA61: =IF((IF(AA51="(",-AB51,AB51)+IF(AA56="(",-AB56,AB56))<0,"(","") ->  | AB61: =ABS(IF(AA51="(",-AB51,AB51)+IF(AA56="(",-AB56,AB56)) -> 626008 | AC61: =IF(AA61="(",")","") ->  | AE61: c
G62: ="за "&IF(god="","предыдущий год",god-1&" год") -> за 2015 год | H62: 5570 | I62: =IF((IF(I52="(",-J52,J52)+IF(I57="(",-J57,J57))<0,"(","") ->  | J62: =ABS(IF(I52="(",-J52,J52)+IF(I57="(",-J57,J57)) -> 554548 | K62: =IF(I62="(",")","") ->  | L62: =IF((IF(L52="(",-M52,M52)+IF(L57="(",-M57,M57))<0,"(","") ->  | M62: =ABS(IF(L52="(",-M52,M52)+IF(L57="(",-M57,M57)) -> 0 | N62: =IF(L62="(",")","") ->  | O62: =IF((IF(O52="(",-P52,P52)+IF(O57="(",-P57,P57))<0,"(","") ->  | P62: =ABS(IF(O52="(",-P52,P52)+IF(O57="(",-P57,P57)) -> 0 | Q62: =IF(O62="(",")","") ->  | R62: ( | S62: =S52+S57 -> 0 | T62: ) | U62: ( | V62: =V52+V57 -> 0 | W62: ) | Y62: x | AA62: =IF((IF(AA52="(",-AB52,AB52)+IF(AA57="(",-AB57,AB57))<0,"(","") ->  | AB62: =ABS(IF(AA52="(",-AB52,AB52)+IF(AA57="(",-AB57,AB57)) -> 672434 | AC62: =IF(AA62="(",")","") ->  | AE62: p
E64: * | F64: Данные раскрываются за минусом кредиторской задолженности, поступившей и погашенной (списанной) в одном отчетном периоде.
D67: 5.4. Просроченная кредиторская задолженность
P69: =IF(unit="","",unit) -> тыс.руб.
E70: № п/п | F70: Наименование показателя | H70: Код строки | I70: ="На "&IF(report_date = "","отчётную дату отчётного года",report_date& " г.") -> На 31.12.2016 г. | L70: ="На 31 декабря "&IF(god = "","предыдущего года",god-1& " г.") -> На 31 декабря 2015 г. | O70: ="На 31 декабря "&IF(god = "","года, предшествующего предыдущему",god-2& " г.") -> На 31 декабря 2014 г.
E71: 1 | F71: 2 | H71: 3 | J71: 4 | L71: 5 | P71: 6
E72: 1.4 | F72: Всего, в том числе: | H72: 5590 | I72: =IF((SUMIF(I73:I74,"",J73:J74)-SUMIF(I73:I74,"(",J73:J74))<0,"(","") ->  | J72: =ABS(SUMIF(I73:I74,"",J73:J74)-SUMIF(I73:I74,"(",J73:J74)) -> 0 | K72: =IF(I72="(",")","") ->  | L72: =IF((SUMIF(L73:L74,"",M73:M74)-SUMIF(L73:L74,"(",M73:M74))<0,"(","") ->  | M72: =ABS(SUMIF(L73:L74,"",M73:M74)-SUMIF(L73:L74,"(",M73:M74)) -> 0 | N72: =IF(L72="(",")","") ->  | O72: =IF((SUMIF(O73:O74,"",P73:P74)-SUMIF(O73:O74,"(",P73:P74))<0,"(","") ->  | P72: =ABS(SUMIF(O73:O74,"",P73:P74)-SUMIF(O73:O74,"(",P73:P74)) -> 0 | Q72: =IF(O72="(",")","") -> 
E73: 1.4.1
F74: Добавить вид
D77: 6. Затраты на производство
E80: № п/п | F80: Наименование показателя | H80: Код строки | I80: ="За "&IF(god = "","отчётный год",god& " г.") -> За 2016 г. | L80: ="За "&IF(god = "","предыдущий год",god-1& " г.") -> За 2015 г.
E81: 1 | F81: 2 | H81: 3 | J81: 4 | L81: 5
E82: 2.1 | F82: Материальные затраты | H82: 5610
E83: 2.2 | F83: Расходы на оплату труда | H83: 5620
E84: 2.3 | F84: Отчисления на социальные нужды | H84: 5630
E85: 2.4 | F85: Амортизация | H85: 5640
E86: 2.5 | F86: Прочие затраты | H86: 5650
E87: 2.6 | F87: Итого по элементам затрат | H87: 5660 | I87: =IF((SUMIF(I82:I86,"",J82:J86)-SUMIF(I82:I86,"(",J82:J86))<0,"(","") ->  | J87: =ABS(SUMIF(I82:I86,"",J82:J86)-SUMIF(I82:I86,"(",J82:J86)) -> 0 | K87: =IF(I87="(",")","") ->  | L87: =IF((SUMIF(L82:L86,"",M82:M86)-SUMIF(L82:L86,"(",M82:M86))<0,"(","") ->  | M87: =ABS(SUMIF(L82:L86,"",M82:M86)-SUMIF(L82:L86,"(",M82:M86)) -> 0 | N87: =IF(L87="(",")","") -> 
E88: 2.7 | F88: Изменение остатков (прирост, уменьшение):
E89: 2.7.1 | F89: незавершенного производства | H89: 5670/5680
E90: 2.7.2 | F90: готовой продукции | H90: 5670/5680
F91: Добавить вид
E92: 2.8 | F92: Итого расходы по обычным видам деятельности | H92: 5600 | I92: =IF((IF(I87="(",-J87,J87)+SUMIF(I89:I91,"",J89:J91)-SUMIF(I89:I91,"(",J89:J91))<0,"(","") ->  | J92: =ABS(IF(I87="(",-J87,J87)+SUMIF(I89:I91,"",J89:J91)-SUMIF(I89:I91,"(",J89:J91)) -> 0 | K92: =IF(I92="(",")","") ->  | L92: =IF((IF(L87="(",-M87,M87)+SUMIF(L89:L91,"",M89:M91)-SUMIF(L89:L91,"(",M89:M91))<0,"(","") ->  | M92: =ABS(IF(L87="(",-M87,M87)+SUMIF(L89:L91,"",M89:M91)-SUMIF(L89:L91,"(",M89:M91)) -> 0 | N92: =IF(L92="(",")","") -> 

Sheet Стр 13
X7: Форма 0710005 с. 13
E8: 7. Оценочные обязательства
V10: =IF(unit="","",unit) -> тыс.руб.
F11: № п/п | G11: Наименование показателя | H11: Код строки | I11: ="Остаток на начало"&IF(god="",""," "&god)&" года" -> Остаток на начало 2016 года | L11: Признано | O11: Погашено | R11: Списано как избыточная сумма | U11: ="Остаток на конец"&IF(god=""," периода"," "&god&" года") -> Остаток на конец 2016 года
F12: 1 | G12: 2 | H12: 3 | J12: 4 | M12: 5 | O12: 6 | S12: 7 | U12: 8
F13: 1 | G13: Оценочные обязательства - всего, в том числе: | H13: 5700 | I13: =IF((SUMIF(I14:I15,"",J14:J15)-SUMIF(I14:I15,"(",J14:J15))<0,"(","") ->  | J13: =ABS(SUMIF(I14:I15,"",J14:J15)-SUMIF(I14:I15,"(",J14:J15)) -> 0 | K13: =IF(I13="(",")","") ->  | L13: =IF((SUMIF(L14:L15,"",M14:M15)-SUMIF(L14:L15,"(",M14:M15))<0,"(","") ->  | M13: =ABS(SUMIF(L14:L15,"",M14:M15)-SUMIF(L14:L15,"(",M14:M15)) -> 0 | N13: =IF(L13="(",")","") ->  | O13: ( | P13: =SUM(P14:P15) -> 0 | Q13: ) | R13: ( | S13: =SUM(S14:S15) -> 0 | T13: ) | U13: =IF((SUMIF(U14:U15,"",V14:V15)-SUMIF(U14:U15,"(",V14:V15))<0,"(","") ->  | V13: =ABS(SUMIF(U14:U15,"",V14:V15)-SUMIF(U14:U15,"(",V14:V15)) -> 0 | W13: =IF(U13="(",")","") ->  | Y13: c
F14: 1.1 | J14: 0 | M14: 0 | O14: ( | P14: 0 | Q14: ) | R14: ( | S14: 0 | T14: ) | V14: 0 | Y14: c
G15: Добавить вид обязательства
E18: 8. Обеспечения обязательств
P20: =IF(unit="","",unit) -> тыс.руб.
F21: № п/п | G21: Наименование показателя | H21: Код строки | I21: ="На "&IF(report_date = "","отчётную дату отчётного года",report_date& " г.") -> На 31.12.2016 г. | L21: ="На 31 декабря "&IF(god = "","предыдущего года",god-1& " г.") -> На 31 декабря 2015 г. | O21: ="На 31 декабря "&IF(god = "","года, предшествующего предыдущему",god-2& " г.") -> На 31 декабря 2014 г.
F22: 1 | G22: 2 | H22: 3 | J22: 4 | L22: 5 | P22: 6
F23: 2.1 | G23: Полученные - всего, в том числе: | H23: 5800 | I23: =IF((SUMIF(I24:I25,"",J24:J25)-SUMIF(I24:I25,"(",J24:J25))<0,"(","") ->  | J23: =ABS(SUMIF(I24:I25,"",J24:J25)-SUMIF(I24:I25,"(",J24:J25)) -> 0 | K23: =IF(I23="(",")","") ->  | L23: =IF((SUMIF(L24:L25,"",M24:M25)-SUMIF(L24:L25,"(",M24:M25))<0,"(","") ->  | M23: =ABS(SUMIF(L24:L25,"",M24:M25)-SUMIF(L24:L25,"(",M24:M25)) -> 0 | N23: =IF(L23="(",")","") ->  | O23: =IF((SUMIF(O24:O25,"",P24:P25)-SUMIF(O24:O25,"(",P24:P25))<0,"(","") ->  | P23: =ABS(SUMIF(O24:O25,"",P24:P25)-SUMIF(O24:O25,"(",P24:P25)) -> 0 | Q23: =IF(O23="(",")","") -> 
F24: 2.1.1
G25: Добавить вид
F26: 2.2 | G26: Выданные - всего, в том числе: | H26: 5810 | I26: =IF((SUMIF(I27:I28,"",J27:J28)-SUMIF(I27:I28,"(",J27:J28))<0,"(","") ->  | J26: =ABS(SUMIF(I27:I28,"",J27:J28)-SUMIF(I27:I28,"(",J27:J28)) -> 0 | K26: =IF(I26="(",")","") ->  | L26: =IF((SUMIF(L27:L28,"",M27:M28)-SUMIF(L27:L28,"(",M27:M28))<0,"(","") ->  | M26: =ABS(SUMIF(L27:L28,"",M27:M28)-SUMIF(L27:L28,"(",M27:M28)) -> 134150 | N26: =IF(L26="(",")","") ->  | O26: =IF((SUMIF(O27:O28,"",P27:P28)-SUMIF(O27:O28,"(",P27:P28))<0,"(","") ->  | P26: =ABS(SUMIF(O27:O28,"",P27:P28)-SUMIF(O27:O28,"(",P27:P28)) -> 134150 | Q26: =IF(O26="(",")","") -> 
F27: 2.2.1 | G27: договор залога | J27: 0 | M27: 134150 | P27: 134150
G28: Добавить вид

Sheet Стр 14
U7: Форма 0710005 с. 14
D8: 9. Государственная помощь
S10: =IF(unit="","",unit) -> тыс.руб.
E11: № п/п | F11: Наименование показателя | H11: Код строки | I11: ="За "&IF(god = "","отчётный год",god& " г.") -> За 2016 г. | L11: ="За "&IF(god = "","предыдущий год",god-1& " г.") -> За 2015 г.
E12: 1 | F12: 2 | H12: 3 | J12: 4 | M12: 5
E13: 1.1 | F13: Получено бюджетных средств - всего, в том числе: | H13: 5900 | I13: =IF((SUMIF(I14:I15,"",J14:J15)-SUMIF(I14:I15,"(",J14:J15))<0,"(","") ->  | J13: =ABS(SUMIF(I14:I15,"",J14:J15)-SUMIF(I14:I15,"(",J14:J15)) -> 0 | K13: =IF(I13="(",")","") ->  | L13: =IF((SUMIF(L14:L15,"",M14:M15)-SUMIF(L14:L15,"(",M14:M15))<0,"(","") ->  | M13: =ABS(SUMIF(L14:L15,"",M14:M15)-SUMIF(L14:L15,"(",M14:M15)) -> 0 | N13: =IF(L13="(",")","") ->  | V13: c
E14: 1.1.1 | F14: на текущие расходы | H14: 5901 | J14: 0 | M14: 0 | V14: c
E15: 1.1.2 | F15: на вложения во внеоборотные активы | H15: 5905 | J15: 0 | M15: 0 | V15: c
E17: № п/п | F17: Наименование показателя | G17: Период | H17: Код строки | I17: На начало года | L17: Получено за год | O17: Возвращено за год | R17: На конец года
E18: 1 | F18: 2 | G18: 3 | H18: 4 | J18: 5 | M18: 6 | O18: 7 | R18: 8
E19: 1.2 | F19: Бюджетные кредиты - всего, в том числе: | G19: ="за "&IF(god="","отчётный год",god&" год") -> за 2016 год | H19: 5910 | I19: =IF((SUM(IF($V$21:$V$23="c",IF(I$21:I$23="(",-J$21:J$23,J$21:J$23))))<0,"(","") ->  | J19: =ABS(SUM(IF($V$21:$V$23="c",IF(I$21:I$23="(",-J$21:J$23,J$21:J$23)))) -> 0 | K19: =IF(I19="(",")","") ->  | L19: =IF((SUM(IF($V$21:$V$23="c",IF(L$21:L$23="(",-M$21:M$23,M$21:M$23))))<0,"(","") ->  | M19: =ABS(SUM(IF($V$21:$V$23="c",IF(L$21:L$23="(",-M$21:M$23,M$21:M$23)))) -> 0 | N19: =IF(L19="(",")","") ->  | O19: ( | P19: =SUMIF($V$21:$V$23,$V19,P$21:P$23) -> 0 | Q19: ) | R19: =IF((SUM(IF($V$21:$V$23="c",IF(R$21:R$23="(",-S$21:S$23,S$21:S$23))))<0,"(","") ->  | S19: =ABS(SUM(IF($V$21:$V$23="c",IF(R$21:R$23="(",-S$21:S$23,S$21:S$23)))) -> 0 | T19: =IF(R19="(",")","") ->  | V19: c
G20: ="за "&IF(god="","предыдущий год",god-1&" год") -> за 2015 год | H20: 5920 | I20: =IF((SUM(IF($V$21:$V$23="p",IF(I$21:I$23="(",-J$21:J$23,J$21:J$23))))<0,"(","") ->  | J20: =ABS(SUM(IF($V$21:$V$23="p",IF(I$21:I$23="(",-J$21:J$23,J$21:J$23)))) -> 0 | K20: =IF(I20="(",")","") ->  | L20: =IF((SUM(IF($V$21:$V$23="p",IF(L$21:L$23="(",-M$21:M$23,M$21:M$23))))<0,"(","") ->  | M20: =ABS(SUM(IF($V$21:$V$23="p",IF(L$21:L$23="(",-M$21:M$23,M$21:M$23)))) -> 0 | N20: =IF(L20="(",")","") ->  | O20: ( | P20: =SUMIF($V$21:$V$23,$V20,P$21:P$23) -> 0 | Q20: ) | R20: =IF((SUM(IF($V$21:$V$23="p",IF(R$21:R$23="(",-S$21:S$23,S$21:S$23))))<0,"(","") ->  | S20: =ABS(SUM(IF($V$21:$V$23="p",IF(R$21:R$23="(",-S$21:S$23,S$21:S$23)))) -> 0 | T20: =IF(R20="(",")","") ->  | V20: p
E21: 1.2.1 | G21: ="за "&IF(god="","отчётный год",god&" год") -> за 2016 год | J21: 0 | M21: 0 | O21: ( | P21: 0 | Q21: ) | S21: 0 | V21: c
G22: ="за "&IF(god="","предыдущий год",god-1&" год") -> за 2015 год | J22: 0 | M22: 0 | O22: ( | P22: 0 | Q22: ) | S22: 0 | V22: p
F23: Добавить цель

Sheet Комментарии
A2: Амурская область
D8: КОММЕНТАРИИ

Sheet Проверка
E10: Результат проверки
E12: Ссылка | F12: Причина | G12: Статус ошибки
E13: 1 | F13: 2 | G13: 3

Sheet AllSheetsInThisWorkbook (hidden)
A1: Расчетные листы | B1: Скрытые листы
A2: Инструкция | B2: AllSheetsInThisWorkbook
A3: Титульный | B3: et_union
A4: Стр 1-3 | B4: TEHSHEET
A5: Стр 4-6 | B5: REESTR_ORG
A6: Стр 7-9 | B6: REESTR_FILTERED
A7: Стр 10-12 | B7: REESTR_MO
A8: Стр 13 | B8: modHyperlink
A9: Стр 14 | B9: modChange
A10: Комментарии | B10: modPROV
A11: Проверка | B11: modTitleSheetHeaders
B12: modServiceModule
B13: modCommandButton
B14: modReestr
B15: modClassifierValidate
B16: modInfo
B17: modfrmReestr
B18: modfrmDateChoose
B19: modDblClick
B20: Паспорт
B21: modUpdTemplMain
B22: modRegionSelectSub
B23: modThisWorkbook
B24: modReestrMO
B25: modSheetMain01
B26: modSheetMain02
B27: modSheetMain03
B28: modSheetMain04
B29: modSheetMain05
B30: modSheetMain06
B31: modSheetMain07
B32: modSheetMain08
B33: modSheetMain09

Sheet et_union (hidden)
A2: add_STR_1_range_1
G4: ="за "&IF(god="","отчётный год",god&"год") -> за 2016год | L4: ( | N4: ) | R4: ( | T4: ) | X4: ( | Z4: ) | AM4: ( | AO4: ) | AQ4: c
G5: ="за "&IF(god="","предыдущий год",god-1&"год") -> за 2015год | L5: ( | N5: ) | R5: ( | T5: ) | X5: ( | Z5: ) | AM5: ( | AO5: ) | AQ5: p
A7: add_STR_1_range_2
A11: add_STR_1_range_3
G13: ="за "&IF(god="","отчётный год",god&"год") -> за 2016год | L13: ( | N13: ) | R13: ( | T13: ) | X13: ( | Z13: ) | AD13: ( | AF13: ) | AH13: c
G14: ="за "&IF(god="","предыдущий год",god-1&"год") -> за 2015год | L14: ( | N14: ) | R14: ( | T14: ) | X14: ( | Z14: ) | AD14: ( | AF14: ) | AH14: p
A16: add_STR_1_range_4
G18: ="за "&IF(god="","отчётный год",god&"год") -> за 2016год | O18: ( | Q18: ) | R18: ( | T18: ) | Y18: c
G19: ="за "&IF(god="","предыдущий год",god-1&"год") -> за 2015год | O19: ( | Q19: ) | R19: ( | T19: ) | Y19: p
A22: add_STR_2_range_1
G24: ="за "&IF(god="","отчётный год",god&"год") -> за 2016год | L24: ( | N24: ) | R24: ( | T24: ) | X24: ( | Z24: ) | AJ24: ( | AL24: ) | AN24: c
G25: ="за "&IF(god="","предыдущий год",god-1&"год") -> за 2015год | L25: ( | N25: ) | R25: ( | T25: ) | X25: ( | Z25: ) | AJ25: ( | AL25: ) | AN25: p
A27: add_STR_2_range_2
G29: ="за "&IF(god="","отчётный год",god&"год") -> за 2016год | O29: ( | Q29: ) | R29: ( | T29: ) | Y29: c
G30: ="за "&IF(god="","предыдущий год",god-1&"год") -> за 2015год | O30: ( | Q30: ) | R30: ( | T30: ) | Y30: p
A32: add_STR_2_range_3
A36: add_STR_2_range_4
I38: ( | K38: ) | L38: ( | N38: )
A40: add_STR_2_range_5
A45: add_STR_3_range_1
G47: ="за "&IF(god="","отчётный год",god&"год") -> за 2016год | R47: ( | T47: ) | AK47: c
G48: ="за "&IF(god="","предыдущий год",god-1&"год") -> за 2015год | R48: ( | T48: ) | AK48: p
A50: add_STR_3_range_2
A54: add_STR_3_range_3
G56: ="за "&IF(god="","отчётный год",god&"год") -> за 2016год | L56: ( | N56: ) | R56: ( | T56: ) | AG56: ( | AI56: ) | AK56: c
G57: ="за "&IF(god="","предыдущий год",god-1&"год") -> за 2015год | L57: ( | N57: ) | R57: ( | T57: ) | AG57: ( | AI57: ) | AK57: p
A60: add_STR_4_range_1
G62: ="за "&IF(god="","отчётный год",god&"год") -> за 2016год | L62: ( | N62: ) | U62: ( | W62: ) | X62: ( | Z62: ) | AD62: ( | AF62: ) | AJ62: ( | AL62: ) | AN62: c
G63: ="за "&IF(god="","предыдущий год",god-1&"год") -> за 2015год | L63: ( | N63: ) | U63: ( | W63: ) | X63: ( | Z63: ) | AD63: ( | AF63: ) | AJ63: ( | AL63: ) | AN63: p
A65: add_STR_4_range_2
G67: ="за "&IF(god="","отчётный год",god&"год") -> за 2016год | L67: ( | N67: ) | U67: ( | W67: ) | X67: ( | Z67: ) | AE67: x | AJ67: ( | AL67: ) | AN67: c
G68: ="за "&IF(god="","предыдущий год",god-1&"год") -> за 2015год | L68: ( | N68: ) | U68: ( | W68: ) | X68: ( | Z68: ) | AE68: x | AJ68: ( | AL68: ) | AN68: p
A70: add_STR_4_range_3
A74: add_STR_4_range_4
G76: ="за "&IF(god="","отчётный год",god&"год") -> за 2016год | R76: ( | T76: ) | U76: ( | W76: ) | X76: ( | Z76: ) | AE76: c
G77: ="за "&IF(god="","предыдущий год",god-1&"год") -> за 2015год | R77: ( | T77: ) | U77: ( | W77: ) | X77: ( | Z77: ) | AE77: p
A79: add_STR_4_range_5
G81: ="за "&IF(god="","отчётный год",god&"год") -> за 2016год | R81: ( | T81: ) | U81: ( | W81: ) | Y81: x | AE81: c
G82: ="за "&IF(god="","предыдущий год",god-1&"год") -> за 2015год | R82: ( | T82: ) | U82: ( | W82: ) | Y82: x | AE82: p
A84: add_STR_4_range_6
A88: add_STR_4_range_7
A93: add_STR_5_range_1
O95: ( | Q95: ) | R95: ( | T95: )
A97: add_STR_5_range_2
A102: add_STR_6_range_1
G104: ="за "&IF(god="","отчётный год",god&"год") -> за 2016год | O104: ( | Q104: ) | V104: c
G105: ="за "&IF(god="","предыдущий год",god-1&"год") -> за 2015год | O105: ( | Q105: ) | V105: p

Sheet TEHSHEET (hidden)
A1: регион | B1: Логика | C1: Кварталы | D1: Года | E1: Единица измерения | F1: Месяц-текст | G1: Месяц-число | H1: День-число | J1: XML_ORG_LIST_TAG_NAMES
B2: да | C2: I квартал | D2: 2011 | E2: тыс.руб. | F2: январь | G2: 01 | H2: 01 | J2: NSRF
A3: Алтайский край | B3: нет | C3: I полугодие | D3: 2012 | E3: млн.руб. | F3: февраль | G3: 02 | H3: 02 | J3: MR_NAME
A4: Амурская область | C4: 9 месяцев | D4: 2013 | F4: март | G4: 03 | H4: 03 | J4: OKTMO_MR_NAME
A5: Архангельская область | C5: год | D5: 2014 | E5: Единица измерения для листа "Доходы-Расходы" | F5: апрель | G5: 04 | H5: 04 | J5: MO_NAME
A6: Астраханская область | B6: Выбранный регион | D6: 2015 | E6: руб. | F6: май | G6: 05 | H6: 05 | J6: OKTMO_NAME
A7: Белгородская область | B7: 0 | E7: тыс.руб. | F7: июнь | G7: 06 | H7: 06 | J7: ORG_NAME
A8: Брянская область | E8: млн.руб. | F8: июль | G8: 07 | H8: 07 | J8: INN_NAME
A9: Владимирская область | F9: август | G9: 08 | H9: 08 | J9: KPP_NAME
A10: Волгоградская область | F10: сентябрь | G10: 09 | H10: 09
A11: Вологодская область | F11: октябрь | G11: 10 | H11: 10 | J11: XML_MR_MO_OKTMO_LIST_TAG_NAMES
A12: Воронежская область | F12: ноябрь | G12: 11 | H12: 11 | J12: NSRF
A13: г.Байконур | F13: декабрь | G13: 12 | H13: 12 | J13: MR_NAME
A14: г. Москва | H14: 13 | J14: OKTMO_MR_NAME
A15: г.Санкт-Петербург | H15: 14 | J15: MO_NAME
A16: Еврейская автономная область | H16: 15 | J16: OKTMO_NAME
A17: Забайкальский край | H17: 16
A18: Ивановская область | H18: 17
A19: Иркутская область | H19: 18
A20: Кабардино-Балкарская республика | H20: 19
A21: Калининградская область | H21: 20
A22: Калужская область | H22: 21
A23: Камчатский край | H23: 22
A24: Карачаево-Черкесская республика | H24: 23
A25: Кемеровская область | H25: 24
A26: Кировская область | H26: 25
A27: Костромская область | H27: 26
A28: Краснодарский край | H28: 27
A29: Красноярский край | H29: 28
A30: Курганская область | H30: 29
A31: Курская область | H31: 30
A32: Ленинградская область | H32: 31
A33: Липецкая область
A34: Магаданская область
A35: Московская область
A36: Мурманская область
A37: Ненецкий автономный округ
A38: Нижегородская область
A39: Новгородская область
A40: Новосибирская область
A41: Омская область
A42: Оренбургская область
A43: Орловская область
A44: Пензенская область
A45: Пермский край
A46: Приморский край
A47: Псковская область
A48: Республика Адыгея
A49: Республика Алтай
A50: Республика Башкортостан
A51: Республика Бурятия
A52: Республика Дагестан
A53: Республика Ингушетия
A54: Республика Калмыкия
A55: Республика Карелия
A56: Республика Коми
A57: Республика Марий Эл
A58: Республика Мордовия
A59: Республика Саха (Якутия)
A60: Республика Северная Осетия-Алания
A61: Республика Татарстан
A62: Республика Тыва
A63: Республика Хакасия
A64: Ростовская область
A65: Рязанская область
A66: Самарская область
A67: Саратовская область
A68: Сахалинская область
A69: Свердловская область
A70: Смоленская область
A71: Ставропольский край
A72: Тамбовская область
A73: Тверская область
A74: Томская область
A75: Тульская область
A76: Тюменская область
A77: Удмуртская республика
A78: Ульяновская область
A79: Хабаровский край
A80: Ханты-Мансийский автономный округ
A81: Челябинская область
A82: Чеченская республика
A83: Чувашская республика
A84: Чукотский автономный округ
A85: Ямало-Ненецкий автономный округ
A86: Ярославская область

Sheet REESTR_ORG (hidden)
A1: № | B1: МР | C1: МО | D1: МО ОКТМО | E1: ОРГАНИЗАЦИЯ | F1: ИНН | G1: КПП | H1: ВИД ДЕЯТЕЛЬНОСТИ

Sheet REESTR_FILTERED (hidden)
A1: № | B1: МР | C1: МО | D1: МО ОКТМО | E1: ОРГАНИЗАЦИЯ | F1: ИНН | G1: КПП | H1: ВИД ДЕЯТЕЛЬНОСТИ

Sheet REESTR_MO (hidden)
A1: МР | B1: МО | C1: МО_ОКТМО | D1: МР | E1: ИМЯ ДИАПАЗОНА
A2: Александро-Невский муниципальный район | B2: Александро-Невский муниципальный район | C2: 61620000 | D2: Александро-Невский муниципальный район | E2: MO_LIST_2
A3: Александро-Невский муниципальный район | B3: Александро-Невское | C3: 61620151 | D3: Город Касимов | E3: MO_LIST_3
A4: Александро-Невский муниципальный район | B4: Благовское | C4: 61620405 | D4: Город Рязань | E4: MO_LIST_4
A5: Александро-Невский муниципальный район | B5: Борисовское | C5: 61620410 | D5: Город Сасово | E5: MO_LIST_5
A6: Александро-Невский муниципальный район | B6: Бурминское | C6: 61620420 | D6: Город Скопин | E6: MO_LIST_6
A7: Александро-Невский муниципальный район | B7: Каширинское | C7: 61620450 | D7: Ермишинский муниципальный район | E7: MO_LIST_7
A8: Александро-Невский муниципальный район | B8: Ленинское | C8: 61620435 | D8: Захаровский муниципальный район | E8: MO_LIST_8
A9: Александро-Невский муниципальный район | B9: Нижнеякимецкое | C9: 61620445 | D9: Кадомский муниципальный район | E9: MO_LIST_9
A10: Александро-Невский муниципальный район | B10: Просеченское | C10: 61620460 | D10: Касимовский муниципальный район | E10: MO_LIST_10
A11: Город Касимов | B11: Город Касимов | C11: 61705000 | D11: Клепиковский муниципальный район | E11: MO_LIST_11
A12: Город Рязань | B12: Город Рязань | C12: 61701000 | D12: Кораблинский муниципальный район | E12: MO_LIST_12
A13: Город Сасово | B13: Город Сасово | C13: 61710000 | D13: Милославский муниципальный район | E13: MO_LIST_13
A14: Город Скопин | B14: Город Скопин | C14: 61715000 | D14: Михайловский муниципальный район | E14: MO_LIST_14
A15: Ермишинский муниципальный район | B15: Азеевское | C15: 61602405 | D15: Пителинский муниципальный район | E15: MO_LIST_15
A16: Ермишинский муниципальный район | B16: Ермишинский муниципальный район | C16: 61602000 | D16: Пронский муниципальный район | E16: MO_LIST_16
A17: Ермишинский муниципальный район | B17: Ермишинское | C17: 61602151 | D17: Путятинский муниципальный район | E17: MO_LIST_17
A18: Ермишинский муниципальный район | B18: Мердушинское | C18: 61602425 | D18: Рыбновский муниципальный район | E18: MO_LIST_18
A19: Ермишинский муниципальный район | B19: Надежкинское | C19: 61602430 | D19: Ряжский муниципальный район | E19: MO_LIST_19
A20: Ермишинский муниципальный район | B20: Нарминское | C20: 61602435 | D20: Рязанский муниципальный район | E20: MO_LIST_20
A21: Ермишинский муниципальный район | B21: Савватемское | C21: 61602440 | D21: Сапожковский муниципальный район | E21: MO_LIST_21
A22: Захаровский муниципальный район | B22: Безлыченское | C22: 61604412 | D22: Сараевский муниципальный район | E22: MO_LIST_22
A23: Захаровский муниципальный район | B23: Большекоровинское | C23: 61604415 | D23: Сасовский муниципальный район | E23: MO_LIST_23
A24: Захаровский муниципальный район | B24: Добро-Пчельское | C24: 61604430 | D24: Скопинский муниципальный район | E24: MO_LIST_24
A25: Захаровский муниципальный район | B25: Елинское | C25: 61604432 | D25: Спасский муниципальный район | E25: MO_LIST_25
A26: Захаровский муниципальный район | B26: Захаровский муниципальный район | C26: 61604000 | D26: Старожиловский муниципальный район | E26: MO_LIST_26
A27: Захаровский муниципальный район | B27: Захаровское | C27: 61604440 | D27: Ухоловский муниципальный район | E27: MO_LIST_27
A28: Захаровский муниципальный район | B28: Плахинское | C28: 61604465 | D28: Чучковский муниципальный район | E28: MO_LIST_28
A29: Захаровский муниципальный район | B29: Сменовское | C29: 61604425 | D29: Шацкий муниципальный район | E29: MO_LIST_29
A30: Кадомский муниципальный район | B30: Восходское | C30: 61606405 | D30: Шиловский муниципальный район | E30: MO_LIST_30
A31: Кадомский муниципальный район | B31: Енкаевское | C31: 61606410
A32: Кадомский муниципальный район | B32: Кадомский муниципальный район | C32: 61606000
A33: Кадомский муниципальный район | B33: Кадомское | C33: 61606151
A34: Кадомский муниципальный район | B34: Котелинское | C34: 61606420
A35: Кадомский муниципальный район | B35: Кущапинское | C35: 61606430
A36: Касимовский муниципальный район | B36: Ардабьевское | C36: 61608403
A37: Касимовский муниципальный район | B37: Ахматовское | C37: 61608406
A38: Касимовский муниципальный район | B38: Балушево-Починковское | C38: 61608409
A39: Касимовский муниципальный район | B39: Булгаковское | C39: 61608439
A40: Касимовский муниципальный район | B40: Гиблицкое | C40: 61608418
A41: Касимовский муниципальный район | B41: Гусевское | C41: 61608154
A42: Касимовский муниципальный район | B42: Дмитриевское | C42: 61608421
A43: Касимовский муниципальный район | B43: Елатомское | C43: 61608156
A44: Касимовский муниципальный район | B44: Ермоловское | C44: 61608424
A45: Касимовский муниципальный район | B45: Ибердусское | C45: 61608430
A46: Касимовский муниципальный район | B46: Касимовский муниципальный район | C46: 61608000
A47: Касимовский муниципальный район | B47: Китовское | C47: 61608433
A48: Касимовский муниципальный район | B48: Клетинское | C48: 61608434
A49: Касимовский муниципальный район | B49: Которовское | C49: 61608442
A50: Касимовский муниципальный район | B50: Крутоярское | C50: 61608453
A51: Касимовский муниципальный район | B51: Лашманское | C51: 61608454
A52: Касимовский муниципальный район | B52: Лощининское | C52: 61608471
A53: Касимовский муниципальный район | B53: Новодеревенское | C53: 61608456
A54: Касимовский муниципальный район | B54: Овчинниковское | C54: 61608459
A55: Касимовский муниципальный район | B55: Первинское | C55: 61608462
A56: Касимовский муниципальный район | B56: Погостинское | C56: 61608465
A57: Касимовский муниципальный район | B57: Савостьяновское | C57: 61608468
A58: Касимовский муниципальный район | B58: Сынтульское | C58: 61608160
A59: Касимовский муниципальный район | B59: Токаревское | C59: 61608474
A60: Касимовский муниципальный район | B60: Торбаевское | C60: 61608412
A61: Касимовский муниципальный район | B61: Шостьинское | C61: 61608480
A62: Клепиковский муниципальный район | B62: Алексеевское | C62: 61610403
A63: Клепиковский муниципальный район | B63: Болоньское | C63: 61610415
A64: Клепиковский муниципальный район | B64: Бусаевское | C64: 61610418
A65: Клепиковский муниципальный район | B65: Екшурское | C65: 61610451
A66: Клепиковский муниципальный район | B66: Клепиковский муниципальный район | C66: 61610000
A67: Клепиковский муниципальный район | B67: Колесниковское | C67: 61610448
A68: Клепиковский муниципальный район | B68: Криушинское | C68: 61610454
A69: Клепиковский муниципальный район | B69: Макеевское | C69: 61610460
A70: Клепиковский муниципальный район | B70: Малаховское | C70: 61610463
A71: Клепиковский муниципальный район | B71: Молькинское | C71: 61610475
A72: Клепиковский муниципальный район | B72: Ненашкинское | C72: 61610487
A73: Клепиковский муниципальный район | B73: Оськинское | C73: 61610472
A74: Клепиковский муниципальный район | B74: Спас-Клепиковское | C74: 61610101
A75: Клепиковский муниципальный район | B75: Тумское | C75: 61610154
A76: Клепиковский муниципальный район | B76: Тюковское | C76: 61610484
A77: Клепиковский муниципальный район | B77: Уткинское | C77: 61610421
A78: Кораблинский муниципальный район | B78: Бобровинское | C78: 61612408
A79: Кораблинский муниципальный район | B79: Кипчаковское | C79: 61612424
A80: Кораблинский муниципальный район | B80: Ключанское | C80: 61612428
A81: Кораблинский муниципальный район | B81: Ковалинское | C81: 61612432
A82: Кораблинский муниципальный район | B82: Кораблинский муниципальный район | C82: 61612000
A83: Кораблинский муниципальный район | B83: Кораблинское | C83: 61612101
A84: Кораблинский муниципальный район | B84: Молвинослободское | C84: 61612456
A85: Кораблинский муниципальный район | B85: Незнановское | C85: 61612448
A86: Кораблинский муниципальный район | B86: Пехлецкое | C86: 61612460
A87: Кораблинский муниципальный район | B87: Пустотинское | C87: 61612464
A88: Кораблинский муниципальный район | B88: Яблоневское | C88: 61612484
A89: Милославский муниципальный район | B89: Богородицкое | C89: 61615408
A90: Милославский муниципальный район | B90: Большеподовечинское | C90: 61615412
A91: Милославский муниципальный район | B91: Горняцкое | C91: 61615422
A92: Милославский муниципальный район | B92: Кочуровское | C92: 61615428
A93: Милославский муниципальный район | B93: Липяговское | C93: 61615432
A94: Милославский муниципальный район | B94: Милославский муниципальный район | C94: 61615000
A95: Милославский муниципальный район | B95: Павловское | C95: 61615456
A96: Милославский муниципальный район | B96: Центральное | C96: 61615160
A97: Милославский муниципальный район | B97: Чернавское | C97: 61615472
A98: Милославский муниципальный район | B98: городское поселение Милославское | C98: 61615151
A99: Милославский муниципальный район | B99: сельское поселение Милославское | C99: 61615444
A100: Михайловский муниципальный район | B100: Виленское | C100: 61617406
A101: Михайловский муниципальный район | B101: Голдинское | C101: 61617412
A102: Михайловский муниципальный район | B102: Горностаевское | C102: 61617415
A103: Михайловский муниципальный район | B103: Грязновское | C103: 61617418
A104: Михайловский муниципальный район | B104: Жмуровское | C104: 61617421
A105: Михайловский муниципальный район | B105: Ильичевское | C105: 61617476
A106: Михайловский муниципальный район | B106: Каморинское | C106: 61617433
A107: Михайловский муниципальный район | B107: Красновское | C107: 61617439
A108: Михайловский муниципальный район | B108: Михайловский муниципальный район | C108: 61617000
A109: Михайловский муниципальный район | B109: Михайловское | C109: 61617101
A110: Михайловский муниципальный район | B110: Новопанское | C110: 61617448
A111: Михайловский муниципальный район | B111: Октябрьское | C111: 61617154
A112: Михайловский муниципальный район | B112: Печерниковское | C112: 61617451
A113: Михайловский муниципальный район | B113: Поярковское | C113: 61617457
A114: Михайловский муниципальный район | B114: Рачатниковское | C114: 61617460
A115: Михайловский муниципальный район | B115: Слободское | C115: 61617467
A116: Михайловский муниципальный район | B116: Стрелецко-Высельское | C116: 61617470
A117: Михайловский муниципальный район | B117: Трепольское | C117: 61617473
A118: Михайловский муниципальный район | B118: Чуриковское | C118: 61617485
A119: Михайловский муниципальный район | B119: Щетининское | C119: 61617491
A120: Пителинский муниципальный район | B120: Ермо-Николаевское | C120: 61623420
A121: Пителинский муниципальный район | B121: Нестеровское | C121: 61623425
A122: Пителинский муниципальный район | B122: Пеньковское | C122: 61623435
A123: Пителинский муниципальный район | B123: Пителинский муниципальный район | C123: 61623000
A124: Пителинский муниципальный район | B124: Пителинское | C124: 61623151
A125: Пителинский муниципальный район | B125: Потапьевское | C125: 61623450
A126: Пронский муниципальный район | B126: Малинищинское | C126: 61625435
A127: Пронский муниципальный район | B127: Мамоновское | C127: 61625440
A128: Пронский муниципальный район | B128: Новомичуринское | C128: 61625114
A129: Пронский муниципальный район | B129: Октябрьское | C129: 61625445
A130: Пронский муниципальный район | B130: Орловское | C130: 61625450
A131: Пронский муниципальный район | B131: Погореловское | C131: 61625455
A132: Пронский муниципальный район | B132: Пронский муниципальный район | C132: 61625000
A133: Пронский муниципальный район | B133: Пронское | C133: 61625151
A134: Пронский муниципальный район | B134: Тырновское | C134: 61625405
A135: Путятинский муниципальный район | B135: Береговское | C135: 61626406
A136: Путятинский муниципальный район | B136: Большеекатериновское | C136: 61626403
A137: Путятинский муниципальный район | B137: Карабухинское | C137: 61626424
A138: Путятинский муниципальный район | B138: Песочинское | C138: 61626432
A139: Путятинский муниципальный район | B139: Путятинский муниципальный район | C139: 61626000
A140: Путятинский муниципальный район | B140: Путятинское | C140: 61626436
A141: Путятинский муниципальный район | B141: Строевское | C141: 61626412
A142: Рыбновский муниципальный район | B142: Алешинское | C142: 61627404
A143: Рыбновский муниципальный район | B143: Баграмовское | C143: 61627406
A144: Рыбновский муниципальный район | B144: Батуринское | C144: 61627408
A145: Рыбновский муниципальный район | B145: Вакинское | C145: 61627416
A146: Рыбновский муниципальный район | B146: Глебковское | C146: 61627418
A147: Рыбновский муниципальный район | B147: Истобниковское | C147: 61627424
A148: Рыбновский муниципальный район | B148: Кузьминское | C148: 61627436
A149: Рыбновский муниципальный район | B149: Пионерское | C149: 61627476
A150: Рыбновский муниципальный район | B150: Пощуповское | C150: 61627456
A151: Рыбновский муниципальный район | B151: Рыбновский муниципальный район | C151: 61627000
A152: Рыбновский муниципальный район | B152: Рыбновское | C152: 61627101
A153: Рыбновский муниципальный район | B153: Селецкое | C153: 61627460
A154: Рыбновский муниципальный район | B154: Ходынинское | C154: 61627472
A155: Рыбновский муниципальный район | B155: Чурилковское | C155: 61627464
A156: Ряжский муниципальный район | B156: Алешинское | C156: 61630405
A157: Ряжский муниципальный район | B157: Дегтянское | C157: 61630415
A158: Ряжский муниципальный район | B158: Журавинское | C158: 61630420
A159: Ряжский муниципальный район | B159: Петровское | C159: 61630450
A160: Ряжский муниципальный район | B160: Поплевинское | C160: 61630460
A161: Ряжский муниципальный район | B161: Ряжский муниципальный район | C161: 61630000
A162: Ряжский муниципальный район | B162: Ряжское | C162: 61630101
A163: Рязанский муниципальный район | B163: Варсковское | C163: 61634402
A164: Рязанский муниципальный район | B164: Высоковское | C164: 61634409
A165: Рязанский муниципальный район | B165: Вышгородское | C165: 61634412
A166: Рязанский муниципальный район | B166: Вышетравинское | C166: 61634415
A167: Рязанский муниципальный район | B167: Дубровическое | C167: 61634427
A168: Рязанский муниципальный район | B168: Дядьковское | C168: 61634430
A169: Рязанский муниципальный район | B169: Екимовское | C169: 61634433
A170: Рязанский муниципальный район | B170: Заборьевское | C170: 61634436
A171: Рязанский муниципальный район | B171: Заокское | C171: 61634439
A172: Рязанский муниципальный район | B172: Искровское | C172: 61634485
A173: Рязанский муниципальный район | B173: Кораблинское | C173: 61634451
A174: Рязанский муниципальный район | B174: Листвянское | C174: 61634457
A175: Рязанский муниципальный район | B175: Льговское | C175: 61634460
A176: Рязанский муниципальный район | B176: Мурминское | C176: 61634401
A177: Рязанский муниципальный район | B177: Окское | C177: 61634475
A178: Рязанский муниципальный район | B178: Подвязьевское | C178: 61634478
A179: Рязанский муниципальный район | B179: Полянское | C179: 61634483
A180: Рязанский муниципальный район | B180: Ровновское | C180: 61634490
A181: Рязанский муниципальный район | B181: Рязанский муниципальный район | C181: 61634000
A182: Рязанский муниципальный район | B182: Семеновское | C182: 61634495
A183: Рязанский муниципальный район | B183: Турлатовское | C183: 61634496
A184: Рязанский муниципальный район | B184: Тюшевское | C184: 61634498
A185: Сапожковский муниципальный район | B185: Березниковское | C185: 61637435
A186: Сапожковский муниципальный район | B186: Канинское | C186: 61637410
A187: Сапожковский муниципальный район | B187: Михеевское | C187: 61637405
A188: Сапожковский муниципальный район | B188: Морозово-Борковское | C188: 61637430
A189: Сапожковский муниципальный район | B189: Сапожковский муниципальный район | C189: 61637000
A190: Сапожковский муниципальный район | B190: Сапожковское | C190: 61637151
A191: Сараевский муниципальный район | B191: Алексеевское | C191: 61640403
A192: Сараевский муниципальный район | B192: Борецкое | C192: 61640412
A193: Сараевский муниципальный район | B193: Бычковское | C193: 61640415
A194: Сараевский муниципальный район | B194: Высоковское | C194: 61640424
A195: Сараевский муниципальный район | B195: Желобовское | C195: 61640430
A196: Сараевский муниципальный район | B196: Кривское | C196: 61640436
A197: Сараевский муниципальный район | B197: Можарское | C197: 61640442
A198: Сараевский муниципальный район | B198: Муравлянское | C198: 61640448
A199: Сараевский муниципальный район | B199: Напольновское | C199: 61640451
A200: Сараевский муниципальный район | B200: Новобокинское | C200: 61640454
... 108 more rows

Sheet modHyperlink (hidden)

Sheet modChange (hidden)

Sheet modPROV (hidden)

Sheet modTitleSheetHeaders (hidden)

Sheet modServiceModule (hidden)

Sheet modCommandButton (hidden)

Sheet modReestr (hidden)

Sheet modClassifierValidate (hidden)

Sheet modInfo (hidden)

Sheet modfrmReestr (hidden)

Sheet modfrmDateChoose (hidden)

Sheet modDblClick (hidden)

Sheet Паспорт (hidden)
AV1: Код диапазона: | AW1: Название диапазона: | AX1: Сфера регулирования: | AY1: Подсфера: | AZ1: Тип информации в шаблоне: | BA1: Состояние шаблона: | BB1: Периодичность: | BC1: "Геотип" шаблона: | BD1: Тип шаблона: | BE1: Заказчик:
AV2: ps_sr | AW2: Сфера регулирования: | AX2: Не определено | AY2: Не определено | AZ2: Не определено | BA2: Не определено | BB2: Не определено | BC2: Не определено | BD2: Не определено | BE2: Не определено
AV3: ps_ti | AW3: Тип информации в шаблоне: | AX3: NETS | AY3: водоотведение - очистка | AZ3: Статистический | BA3: Проект | BB3: Единовременный | BC3: Региональный шаблон | BD3: Атомарный | BE3: РЭК
D4: Паспорт к шаблону | AV4: ps_ssh | AW4: Состояние шаблона: | AX4: Аэропорты | AY4: водоотведение - передача | AZ4: Расчетный | BA4: Утвержден | BB4: Ежемесячный | BC4: Муниципальный шаблон | BD4: Сводный | BE4: ФСТ
AV5: ps_p | AW5: Периодичность: | AX5: Газ | AY5: водоотведение - прием | AZ5: Обосновывающие материалы | BB5: Ежеквартальный | BC5: Шаблон от организации | BE5: Экспертная организация
D6: 1. Общие сведения | AV6: ps_geo | AW6: "Геотип" шаблона: | AX6: Железные дороги | AY6: водоснабжение - очистка | BB6: Ежегодный
D7: 1.1 | E7: Код | F7: EE.BALANCE.SBO.3.23 | AV7: ps_tsh | AW7: Тип шаблона: | AX7: ЖКХ | AY7: водоснабжение - передача
D8: 1.2 | E8: Краткое наименование | F8: Отчет о фактическом исполнении прогнозных балансов производства и поставок электрической (тепловой) энергии и мощности по электростанции | AV8: ps_psr | AW8: Подсфера: | AX8: Медицина | AY8: водоснабжение - подъем
D9: 1.3 | E9: Полное наименование | F9: Отчет о фактическом исполнении прогнозных балансов производства и поставок электрической (тепловой) энергии и мощности по электростанции | AV9: ps_z | AW9: Заказчик: | AX9: Порты | AY9: выработка ТС
D10: 1.4 | E10: Сфера регулирования | F10: Электроэнергетика | AX10: Связь | AY10: выработка ТС в режиме комбинированной выработки
D11: 1.5 | E11: Подсфера | F11: Не определено | AX11: Транспорт | AY11: выработка электрической энергии
D12: 1.6 | E12: Состояние шаблона (Утвержден/Проект) | F12: Проект | AX12: Электроэнергетика | AY12: выработка+передача+сбыт ТС
D13: 1.7 | E13: Заказчик | F13: РЭК | AY13: передача ТС
D14: 1.8 | E14: Отчитывается | F14: Региональный шаблон | AY14: передача ЭЭ
D15: 1.9 | E15: Тип шаблона | F15: Атомарный | G15: Если шаблон сводный, необходимо указать код атомарного шаблона для него: | AY15: сбыт ТС
D16: 1.10 | E16: Текущая версия | F16: 1.0 | AY16: сбыт ЭЭ
AY17: ТБО
D18: 2. Организационные
D19: 2.1 | E19: Тип информации в шаблоне | F19: Расчетный
D20: 2.2 | E20: Ответственный регулятор (от заказчика)
D21: 2.3 | E21: Ответственный специалист (от СМА)
D22: 2.4 | E22: Ответственный программист (от СМА) | F22: Кропачева А.В.
D23: 2.5 | E23: Ответственные за сбор данных (от СМА)
D24: 2.6 | E24: Ответственные за сбор данных (от заказчика)
D26: 3. Законодательство (методики, приказы, постановления ...)
C27: first | D27: 3.1 | E27: Документ1
C28: end | D28: Добавить документ
D30: 4. Периодичность
D31: 4.1 | E31: Периодичность | F31: Не определено
E32: Мониторинги(прошедшие и плановые) | F32: Дата начала | G32: Дата окончания | H32: Согласно (приказ, постановление, письмо)
C33: first | D33: 4.2.1 | E33: Мониторинг1
C34: end | D34: Добавить мониторинг
D36: 5. Состав шаблона
E37: Лист | F37: Последняя дата изменений эскиза | G37: Состояние листа | H37: Наименование витрины для листа | I37: Комментарии
C38: first | D38: 5.1.1 | E38: Инструкция | F38: 24.03.2009 | G38: В разработке
C39: Удалить | D39: 5.1.2 | E39: Справочники | F39: 24.03.2009 | G39: В разработке
C40: Удалить | D40: 5.1.3 | E40: Титульный | F40: 24.03.2009 | G40: В разработке
C41: Удалить | D41: 5.1.4 | E41: янв | F41: 24.03.2009 | G41: В разработке
C42: Удалить | D42: 5.1.5 | E42: фев | F42: 25.03.2009 | G42: В разработке
C43: Удалить | D43: 5.1.6 | E43: март | F43: 25.03.2010 | G43: В разработке
C44: Удалить | D44: 5.1.7 | E44: апр | F44: 25.03.2011 | G44: В разработке
C45: Удалить | D45: 5.1.8 | E45: май | F45: 25.03.2012 | G45: В разработке
C46: Удалить | D46: 5.1.9 | E46: июнь | F46: 25.03.2013 | G46: В разработке
C47: Удалить | D47: 5.1.10 | E47: июль | F47: 25.03.2014 | G47: В разработке
C48: Удалить | D48: 5.1.11 | E48: авг | F48: 25.03.2015 | G48: В разработке
C49: Удалить | D49: 5.1.12 | E49: сент | F49: 25.03.2016 | G49: В разработке
C50: Удалить | D50: 5.1.13 | E50: окт | F50: 25.03.2017 | G50: В разработке
C51: Удалить | D51: 5.1.14 | E51: нояб | F51: 25.03.2018 | G51: В разработке
C52: Удалить | D52: 5.1.15 | E52: дек | F52: 25.03.2019 | G52: В разработке
C53: Удалить | D53: 5.1.16 | E53: свод | F53: 25.03.2020 | G53: В разработке
C54: Удалить | D54: 5.1.17 | E54: Проверка | F54: 24.03.2009 | G54: В разработке
C55: end | D55: Добавить лист
D57: 6. Сроки и даты
D58: 6.1.1 | E58: Даты получения последних эскизов, от экспертов | F58: 24.03.2009
D59: 6.1.2 | E59: Даты отправки шаблона на проверку | F59: 25.03.2009
D60: 6.1.3 | E60: Предполагаемый срок сдачи шаблона в эксплуатацию
D62: 7. Версии
E63: Версия | F63: Отличия от предыдущей
C64: first | D64: 7.1
C65: end | D65: Добавить версию
D67: 8. Дополнительно
D68: 8.1 | E68: Аналогичные("похожие") шаблоны
D69: 8.2 | E69: Особенности шаблона
D70: 8.3 | E70: Модуль на основе данного шаблона
D71: 8.4 | E71: Процедуры загрузки данных в витрины

Sheet modUpdTemplMain (hidden)

Sheet modRegionSelectSub (hidden)

Sheet modThisWorkbook (hidden)

Sheet modReestrMO (hidden)

Sheet modSheetMain01 (hidden)

Sheet modSheetMain02 (hidden)

Sheet modSheetMain03 (hidden)

Sheet modSheetMain04 (hidden)

Sheet modSheetMain05 (hidden)

Sheet modSheetMain06 (hidden)

Sheet modSheetMain07 (hidden)

Sheet modSheetMain08 (hidden)

Sheet modSheetMain09 (hidden)
